Workbook

Sheet Portfolio
F1: =IF($B2<>"",GetStockNumParam($B2,"k"),"") -> 
E2: Tot Cost of Positions | G2: =SUM(AF11:AF511) -> 127771.153 | I2: Book Value | K2: =SUM(AC11:AC511) -> 95454.023 | N2: Overall Position Record | AF2: IN Position | AP2: Description (currently sorted ascending) Sort By Description, Descending | AQ2: Symbol (currently sorted ascending) Sort By Description, Descending | AR2: Transaction Date (currently sorted ascending) Sort By Description, Descending | AS2: Settlement Date (currently sorted ascending) Sort By Description, Descending | AT2: Account Currency (currently sorted ascending) Sort By Description, Descending | AU2: Type (currently sorted ascending) Sort By Description, Descending | AV2: Quantity | AW2: Price | AX2: Settlement Amount
E3: Tot Value of Positions | G3: =SUM(AG11:AG511)+$B$9 -> 117833.3913 | I3: Market Value | K3: =SUM(AB11:AB511)+$B$9 -> 85087.3913 | N3: POSITIONS ENTERED | P3: =P4+P5+P6 -> 8 | AF3: OUT Position | AP3: conf#94290762 Scotia Online FEE CHARGE | AR3: Mar. 25, 2015 | AS3: Mar. 25, 2015 | AT3: CAD | AU3: FEE | AV3: 0 | AW3: 0 | AX3: -50
E4: Tot Return Value | G4: =G3-G2 -> -9937.7617 | I4: Market Change ($) | K4: =SUM(K3-K2) -> -10366.6317 | N4: WINS | P4: =COUNTIF(AH11:AH511,">0") -> 5 | AF4: Watching | AP4: conf#94290762 Scotia Online FEDERAL TAX | AR4: Mar. 25, 2015 | AS4: Mar. 25, 2015 | AT4: CAD | AU4: TAX | AV4: 0 | AW4: 0 | AX4: -444.44
A5: PREDICTOR STOCK QUOTE MANAGER | E5: Tot Return Rate | G5: =SUM(G7-B8) / B8 -> -0.099377617 | I5: Market Change (%) | K5: =IF(ISERR((K3/K2)-100%),"N/A",(K3/K2)-100%) -> -0.1086034027 | N5: LOSSES | P5: =COUNTIF(AH11:AH511,"<0") -> 3 | AF5: Simulate | AP5: conf#94290762 Scotia Online HST# R104752415 | AR5: Mar. 25, 2015 | AS5: Mar. 25, 2015 | AT5: CAD | AU5: HST | AV5: 0 | AW5: 0 | AX5: -7.5
A6: My Country | B6: Canada | E6: Tot Trade Fees | G6: =SUM(H11:H511)+SUM(V11:V511) -> 55.98 | I6: Dividends Earned | K6: =SUM(W11:W511) -> 0 | N6: TIES | P6: =COUNTIF(AH11:AH511,"=0") -> 0 | AP6: conf#94290762 Scotia Online WITHDRAWAL | AR6: Mar. 25, 2015 | AS6: Mar. 25, 2015 | AT6: CAD | AU6: WITHDRAW | AV6: 0 | AW6: 0 | AX6: -4000
A7: Starting Date | B7: 2015-07-06 | E7: Account Value | G7: =SUM(G4+B8) -> 90062.2383 | I7: Buying Power | K7: =G7-K3 -> 4974.847 | N7: TRADE AVERAGE | P7: =ROUND((P4/(P3-P6)),3) -> 0.625 | AF7: CAD | AH7: Normal
A8: Cash Injection | B8: 100000 | E8: =IF(B6 = "Canada", "USDCAD X","CADUSD X") -> USDCAD X | AF8: USD | AH8: Simulate
A9: Market Value Adjustment | B9: 0 | E9: =GetXRate(B6) -> 1.3082 | I9: 0 | J9: Stock Quotes (yahoo financial - 20 min delay)
A10: Stock Name | B10: Position | C10: Symbol | D10: Qty | E10: Currency | F10: Purchase Price Per Share | G10: Transaction Date | H10: Trade Fees | I10: Total Cost (Purchase Price + Fees) | J10: Prv Close Quote | K10: Current Quote | L10: Day Gain Loss | M10: Day Ret (%) | N10: Market Value | O10: Gain/Loss ($) | P10: Gain/Loss (%) | Q10: Alert Sell | R10: Alert Stop | S10: Alert Action | T10: Sold Price | U10: Sold Date | V10: Trade Fees | W10: Dividend Paid | X10: Actual Return Gain ($) | Y10: Actual Return (%) | Z10: End Value
A11: =IF($C11="","",GetName($C11)) -> Walt Disney Company (The) Commo | B11: IN Position | C11: DIS | D11: 100 | E11: USD | F11: 117.15 | G11: 2015-07-10 | H11: 0 | I11: 15284.5605 | J11: 144.29446 | K11: 143.143244 | L11: =IF(J11 > 0,K11-J11,"") -> -1.151216 | M11: =IF(J11 > 0,(L11/J11),"") -> -0.00797824116 | N11: =IF(D11 > 0,IF(T11 > 0,"SOLD",D11*K11),"") -> 14314.3244 | O11: =IF(D11 > 0,IF(T11 > 0, Z11-I11, N11-I11),"") -> -970.2361 | P11: =IF(D11 > 0,IF(O11=0,0,(O11/I11)),"") -> -0.06347818114 | Q11: =IFERROR(IF($F11>0,IF($B$6="Canada",IF($E11="CAD",$F11*((Settings!$B$2)+1),$F11*$E$9*((Settings!$B$2)+1)), IF($E11="USD",$F11*((Settings!$B$2)+1),$F11*$E$9*((Settings!$B$2)+1))),””),"") -> 183.906756 | R11: =IFERROR(IF($F11>0,$AA11*(1-Settings!$B$3),""),"") -> 147.1254048 | S11: =IF(F11>0,IF(K11>=Q11,"SELL",IF(K11<=R11,"STOP","HOLD")),"") -> STOP | X11: =IF(D11 > 0,IF(Z11 = 0,0,Z11-I11),"") -> -970.2361 | Y11: =IF(D11 > 0,IF(Z11=0,0,(Z11/I11)-100%),"") -> -0.06347818114 | Z11: =IF(T11 > 0,T11*D11-V11+W11,N11) -> 14314.3244 | AA11: =IF($B$6="Canada", IF($E11="CAD",IF($F11>$K11,$F11,$K11),IF(($F11*$E$9)>$K11,($F11*$E$9),$K11)), IF($E11="CAD",IF(($F11*$E$9)>$K11,($F11*$E$9),$K11),IF($F11>$K11,$F11,$K11))) -> 153.25563 | AB11: =IF($B11="Simulate",0,IF(N11 = "SOLD", 0, N11)) -> 14314.3244 | AC11: =IF($B11="Simulate",0,IF(N11 = "SOLD",0,I11)) -> 15284.5605 | AD11: =IF(N11 = "SOLD", Z11-I11,I11) -> 15284.5605 | AE11: =IF($C11<>"",GetStockNumParam($C11,"h"),"") -> 110.15 | AF11: =IF($B11="Simulate",0,$I11) -> 15284.5605 | AG11: =IF($B11="Simulate",0,Z11) -> 14314.3244 | AH11: =IF($B11="Simulate","",$O11) -> -970.2361
A12: =IF($C12="","",GetName($C12)) -> iShares Nasdaq Biotechnology In | B12: IN Position | C12: IBB | D12: 100 | E12: USD | F12: 374.4 | G12: 2015-07-03 | H12: 0 | I12: 48847.968 | J12: 370.28601 | K12: 370.900864 | L12: =IF(J12 > 0,K12-J12,"") -> 0.614854 | M12: =IF(J12 > 0,(L12/J12),"") -> 0.001660484013 | N12: 37090.0864 | O12: -11757.8816 | P12: -0.2407035969 | Q12: =IFERROR(IF($F12>0,IF($B$6="Canada",IF($E12="CAD",$F12*((Settings!$B$2)+1),$F12*$E$9*((Settings!$B$2)+1)), IF($E12="USD",$F12*((Settings!$B$2)+1),$F12*$E$9*((Settings!$B$2)+1))),””),"") -> 587.748096 | R12: =IFERROR(IF($F12>0,$AA12*(1-Settings!$B$3),""),"") -> 470.1984768 | S12: STOP | X12: -11757.8816 | Y12: -0.2407035969 | Z12: 37090.0864 | AA12: 489.79008 | AB12: =IF($B12="Simulate",0,IF(N12 = "SOLD", 0, N12)) -> 37090.0864 | AC12: =IF($B12="Simulate",0,IF(N12 = "SOLD",0,I12)) -> 48847.968 | AD12: 48847.968 | AE12: =IF($C12<>"",GetStockNumParam($C12,"h"),"") -> 283.71 | AF12: =IF($B12="Simulate",0,$I12) -> 48847.968 | AG12: =IF($B12="Simulate",0,Z12) -> 37090.0864 | AH12: =IF($B12="Simulate","",$O12) -> -11757.8816
A13: BMO EQUAL WEIGHT US BANK IDX ET | B13: IN Position | C13: ZBK.TO | D13: 500 | E13: CAD | F13: 20.03 | G13: 2015-07-15 | H13: 9.99 | I13: 10024.99 | J13: 24.09 | K13: 24.14 | L13: 0.05 | M13: 0.002075550021 | N13: 12070 | O13: 2045.01 | P13: 0.2039912259 | Q13: =IFERROR(IF($F13>0,IF($B$6="Canada",IF($E13="CAD",$F13*((Settings!$B$2)+1),$F13*$E$9*((Settings!$B$2)+1)), IF($E13="USD",$F13*((Settings!$B$2)+1),$F13*$E$9*((Settings!$B$2)+1))),””),"") -> 24.036 | R13: =IFERROR(IF($F13>0,$AA13*(1-Settings!$B$3),""),"") -> 23.1744 | S13: SELL | X13: 2045.01 | Y13: 0.2039912259 | Z13: 12070 | AA13: 24.14 | AB13: 12070 | AC13: 10024.99 | AD13: 10024.99 | AE13: =IF($C13<>"",GetStockNumParam($C13,"h"),"") -> 24.35 | AF13: 10024.99 | AG13: 12070 | AH13: 2045.01
A14: Bank of America Corporation Com | B14: IN Position | C14: BAC | D14: 500 | E14: USD | F14: 17.67 | G14: 2015-07-15 | H14: 9 | I14: 11536.0245 | J14: 30.467978 | K14: 30.225961 | L14: -0.242017 | M14: -0.007943323315 | N14: 15112.9805 | O14: 3576.956 | P14: 0.3100683429 | Q14: =IFERROR(IF($F14>0,IF($B$6="Canada",IF($E14="CAD",$F14*((Settings!$B$2)+1),$F14*$E$9*((Settings!$B$2)+1)), IF($E14="USD",$F14*((Settings!$B$2)+1),$F14*$E$9*((Settings!$B$2)+1))),””),"") -> 27.7390728 | R14: =IFERROR(IF($F14>0,$AA14*(1-Settings!$B$3),""),"") -> 29.01692256 | S14: SELL | X14: 3576.956 | Y14: 0.3100683429 | Z14: 15112.9805 | AA14: 30.225961 | AB14: 15112.9805 | AC14: 11536.0245 | AD14: 11536.0245 | AE14: =IF($C14<>"",GetStockNumParam($C14,"h"),"") -> 23.38 | AF14: 11536.0245 | AG14: 15112.9805 | AH14: 3576.956
A15: ELEMENT FLEET MANAGEMENT CORP | B15: IN Position | C15: EFN.TO | D15: 500 | E15: CAD | F15: 19.64 | G15: 2015-07-15 | H15: 9 | I15: 9760.48 | J15: 12.75 | K15: 13 | L15: 0.25 | M15: 0.01960784314 | N15: 6500 | O15: -3260.48 | P15: -0.3340491451 | Q15: =IFERROR(IF($F15>0,IF($B$6="Canada",IF($E15="CAD",$F15*((Settings!$B$2)+1),$F15*$E$9*((Settings!$B$2)+1)), IF($E15="USD",$F15*((Settings!$B$2)+1),$F15*$E$9*((Settings!$B$2)+1))),””),"") -> 23.568 | R15: =IFERROR(IF($F15>0,$AA15*(1-Settings!$B$3),""),"") -> 18.8544 | S15: STOP | X15: -3260.48 | Y15: -0.3340491451 | Z15: 6500 | AA15: 19.64 | AB15: 6500 | AC15: 9760.48 | AD15: 9760.48 | AE15: =IF($C15<>"",GetStockNumParam($C15,"h"),"") -> 13.04 | AF15: 9760.48 | AG15: 6500 | AH15: -3260.48
Q16: =IFERROR(IF($F16>0,IF($B$6="Canada",IF($E16="CAD",$F16*((Settings!$B$2)+1),$F16*$E$9*((Settings!$B$2)+1)), IF($E16="USD",$F16*((Settings!$B$2)+1),$F16*$E$9*((Settings!$B$2)+1))),””),"") ->  | R16: =IFERROR(IF($F16>0,$AA16*(1-Settings!$B$3),""),"") ->  | AA16: 0 | AC16: 0 | AD16: 0 | AE16: =IF($C16<>"",GetStockNumParam($C16,"h"),"") ->  | AF16: 0
Q17: =IFERROR(IF($F17>0,IF($B$6="Canada",IF($E17="CAD",$F17*((Settings!$B$2)+1),$F17*$E$9*((Settings!$B$2)+1)), IF($E17="USD",$F17*((Settings!$B$2)+1),$F17*$E$9*((Settings!$B$2)+1))),””),"") ->  | R17: =IFERROR(IF($F17>0,$AA17*(1-Settings!$B$3),""),"") ->  | Z17: =IF(T17 > 0,T17*D17-V17+W17,N17) ->  | AA17: 0 | AC17: 0 | AD17: 0 | AE17: =IF($C17<>"",GetStockNumParam($C17,"h"),"") ->  | AF17: 0
A18: CRESCENT POINT ENERGY CORP. | B18: Watching | C18: CPG.TO | D18: 0 | E18: CAD | J18: 14.79 | K18: 14.05 | L18: -0.74 | M18: -0.05003380663 | Q18: =IFERROR(IF($F18>0,IF($B$6="Canada",IF($E18="CAD",$F18*((Settings!$B$2)+1),$F18*$E$9*((Settings!$B$2)+1)), IF($E18="USD",$F18*((Settings!$B$2)+1),$F18*$E$9*((Settings!$B$2)+1))),””),"") ->  | R18: =IFERROR(IF($F18>0,$AA18*(1-Settings!$B$3),""),"") ->  | AA18: 14.05 | AC18: 0 | AD18: 0 | AE18: =IF($C18<>"",GetStockNumParam($C18,"h"),"") -> 14.94 | AF18: 0
A19: DH CORPORATION | B19: Watching | C19: DH.TO | D19: 0 | E19: CAD | J19: 23.67 | K19: 23.72 | L19: 0.05 | M19: 0.002112378538 | Q19: =IFERROR(IF($F19>0,IF($B$6="Canada",IF($E19="CAD",$F19*((Settings!$B$2)+1),$F19*$E$9*((Settings!$B$2)+1)), IF($E19="USD",$F19*((Settings!$B$2)+1),$F19*$E$9*((Settings!$B$2)+1))),””),"") ->  | R19: =IFERROR(IF($F19>0,$AA19*(1-Settings!$B$3),""),"") ->  | AA19: 23.72 | AC19: 0 | AD19: 0 | AE19: =IF($C19<>"",GetStockNumParam($C19,"h"),"") -> 23.92 | AF19: 0
A20: FAIRFAX INDIA HOLDINGS CORPORAT | B20: Watching | C20: FIH-U.TO | D20: 0 | E20: CAD | J20: 11.44 | K20: 11.65 | L20: 0.21 | M20: 0.01835664336 | Q20: =IFERROR(IF($F20>0,IF($B$6="Canada",IF($E20="CAD",$F20*((Settings!$B$2)+1),$F20*$E$9*((Settings!$B$2)+1)), IF($E20="USD",$F20*((Settings!$B$2)+1),$F20*$E$9*((Settings!$B$2)+1))),””),"") ->  | R20: =IFERROR(IF($F20>0,$AA20*(1-Settings!$B$3),""),"") ->  | AA20: 11.65 | AC20: 0 | AD20: 0 | AE20: =IF($C20<>"",GetStockNumParam($C20,"h"),"") -> 11.69 | AF20: 0
A21: Walt Disney Company (The) Commo | B21: Simulate | C21: DIS | D21: 70 | E21: USD | F21: 104.080002 | G21: 2015-02-22 | H21: 0 | I21: 9450.15176 | J21: 144.29446 | K21: 143.143244 | L21: -1.151216 | M21: -0.00797824116 | N21: 10020.02708 | O21: 569.87532 | P21: 0.06030329824 | Q21: =IFERROR(IF($F21>0,IF($B$6="Canada",IF($E21="CAD",$F21*((Settings!$B$2)+1),$F21*$E$9*((Settings!$B$2)+1)), IF($E21="USD",$F21*((Settings!$B$2)+1),$F21*$E$9*((Settings!$B$2)+1))),””),"") -> 163.3889503 | R21: =IFERROR(IF($F21>0,$AA21*(1-Settings!$B$3),""),"") -> 137.4175142 | S21: HOLD | X21: 569.87532 | Y21: 0.06030329824 | Z21: 10020.02708 | AA21: 143.143244 | AB21: 0 | AC21: 0 | AD21: 9450.15176 | AE21: =IF($C21<>"",GetStockNumParam($C21,"h"),"") -> 110.15 | AF21: 0 | AG21: 0
A22: iShares Nasdaq Biotechnology In | B22: Simulate | C22: IBB | D22: 30 | E22: USD | F22: 337.470001 | G22: 2015-02-22 | H22: 0 | I22: 13131.97011 | J22: 370.28601 | K22: 370.900864 | L22: 0.614854 | M22: 0.001660484013 | N22: 11127.02592 | O22: -2004.94419 | P22: -0.1526765728 | Q22: =IFERROR(IF($F22>0,IF($B$6="Canada",IF($E22="CAD",$F22*((Settings!$B$2)+1),$F22*$E$9*((Settings!$B$2)+1)), IF($E22="USD",$F22*((Settings!$B$2)+1),$F22*$E$9*((Settings!$B$2)+1))),””),"") -> 529.7739064 | R22: =IFERROR(IF($F22>0,$AA22*(1-Settings!$B$3),""),"") -> 423.8191251 | S22: STOP | X22: -2004.94419 | Y22: -0.1526765728 | Z22: 11127.02592 | AA22: 441.4782553 | AB22: 0 | AC22: 0 | AD22: 13131.97011 | AE22: =IF($C22<>"",GetStockNumParam($C22,"h"),"") -> 283.71 | AF22: 0 | AG22: 0
A23: BMO EQUAL WEIGHT US BANK IDX ET | B23: Simulate | C23: ZBK.TO | D23: 400 | E23: CAD | F23: 17.91 | G23: 2015-02-22 | H23: 0 | I23: 7164 | J23: 24.09 | K23: 24.14 | L23: 0.05 | M23: 0.002075550021 | N23: 9656 | O23: 2492 | P23: 0.3478503629 | Q23: =IFERROR(IF($F23>0,IF($B$6="Canada",IF($E23="CAD",$F23*((Settings!$B$2)+1),$F23*$E$9*((Settings!$B$2)+1)), IF($E23="USD",$F23*((Settings!$B$2)+1),$F23*$E$9*((Settings!$B$2)+1))),””),"") -> 21.492 | R23: =IFERROR(IF($F23>0,$AA23*(1-Settings!$B$3),""),"") -> 23.1744 | S23: SELL | X23: 2492 | Y23: 0.3478503629 | Z23: 9656 | AA23: 24.14 | AB23: 0 | AC23: 0 | AD23: 7164 | AE23: =IF($C23<>"",GetStockNumParam($C23,"h"),"") -> 24.35 | AF23: 0 | AG23: 0
A24: Bank of America Corporation Com | B24: Simulate | C24: BAC | D24: 400 | E24: USD | F24: 15.81 | G24: 2015-02-22 | H24: 0 | I24: 8202.8604 | J24: 30.467978 | K24: 30.225961 | L24: -0.242017 | M24: -0.007943323315 | N24: 12090.3844 | O24: 3887.524 | P24: 0.4739229745 | Q24: =IFERROR(IF($F24>0,IF($B$6="Canada",IF($E24="CAD",$F24*((Settings!$B$2)+1),$F24*$E$9*((Settings!$B$2)+1)), IF($E24="USD",$F24*((Settings!$B$2)+1),$F24*$E$9*((Settings!$B$2)+1))),””),"") -> 24.8191704 | R24: =IFERROR(IF($F24>0,$AA24*(1-Settings!$B$3),""),"") -> 29.01692256 | S24: SELL | X24: 3887.524 | Y24: 0.4739229745 | Z24: 12090.3844 | AA24: 30.225961 | AB24: 0 | AC24: 0 | AD24: Canada | AE24: =IF($C24<>"",GetStockNumParam($C24,"h"),"") -> 23.38 | AF24: 0 | AG24: 0
A25: ELEMENT FLEET MANAGEMENT CORP | B25: Simulate | C25: EFN.TO | D25: 500 | E25: CAD | F25: 16.02 | G25: 2015-02-22 | H25: 0 | I25: 8010 | J25: 12.75 | K25: 13 | L25: 0.25 | M25: 0.01960784314 | N25: 6500 | O25: -1510 | P25: -0.1885143571 | Q25: =IFERROR(IF($F25>0,IF($B$6="Canada",IF($E25="CAD",$F25*((Settings!$B$2)+1),$F25*$E$9*((Settings!$B$2)+1)), IF($E25="USD",$F25*((Settings!$B$2)+1),$F25*$E$9*((Settings!$B$2)+1))),””),"") -> 19.224 | R25: =IFERROR(IF($F25>0,$AA25*(1-Settings!$B$3),""),"") -> 15.3792 | S25: STOP | X25: -1510 | Y25: -0.1885143571 | Z25: 6500 | AA25: 16.02 | AB25: 0 | AC25: 0 | AD25: USA | AE25: =IF($C25<>"",GetStockNumParam($C25,"h"),"") -> 13.04 | AF25: 0 | AG25: 0
Q26: =IFERROR(IF($F26>0,IF($B$6="Canada",IF($E26="CAD",$F26*((Settings!$B$2)+1),$F26*$E$9*((Settings!$B$2)+1)), IF($E26="USD",$F26*((Settings!$B$2)+1),$F26*$E$9*((Settings!$B$2)+1))),””),"") ->  | R26: =IFERROR(IF($F26>0,$AA26*(1-Settings!$B$3),""),"") ->  | AA26: 0 | AC26: 0 | AD26: 0 | AE26: =IF($C26<>"",GetStockNumParam($C26,"h"),"") ->  | AF26: 0
A27: BMO EQUAL WEIGHT US BANK IDX ET | B27: OUT Position | C27: ZBK.TO | D27: 600 | E27: CAD | F27: 19.08 | G27: 2015-07-03 | H27: 0 | I27: 11465.61 | J27: 24.09 | K27: 24.14 | L27: 0.05 | M27: 0.002075550021 | N27: SOLD | O27: 180.39 | P27: 0.01573313587 | Q27: =IFERROR(IF($F27>0,IF($B$6="Canada",IF($E27="CAD",$F27*((Settings!$B$2)+1),$F27*$E$9*((Settings!$B$2)+1)), IF($E27="USD",$F27*((Settings!$B$2)+1),$F27*$E$9*((Settings!$B$2)+1))),””),"") -> 22.896 | R27: =IFERROR(IF($F27>0,$AA27*(1-Settings!$B$3),""),"") -> 23.1744 | S27: SELL | T27: 19.41 | U27: 2015-07-14 | V27: 0 | W27: 0 | X27: 180.39 | Y27: 0.01573313587 | Z27: 11646 | AA27: 24.14 | AB27: 0 | AC27: 0 | AD27: 180.39 | AE27: =IF($C27<>"",GetStockNumParam($C27,"h"),"") -> 24.35 | AF27: 11465.61 | AG27: 11646 | AH27: 180.39
A28: BMO EQL WGT US HCARE HDGD TO CA | B28: OUT Position | C28: ZUH.TO | D28: 250 | E28: CAD | F28: 44.45 | G28: 2015-07-03 | H28: 0 | I28: 11170.53 | J28: 41.62 | K28: 41.44 | L28: -0.18 | M28: -0.004324843825 | N28: SOLD | O28: 129.47 | P28: 0.01159031845 | Q28: =IFERROR(IF($F28>0,IF($B$6="Canada",IF($E28="CAD",$F28*((Settings!$B$2)+1),$F28*$E$9*((Settings!$B$2)+1)), IF($E28="USD",$F28*((Settings!$B$2)+1),$F28*$E$9*((Settings!$B$2)+1))),””),"") -> 53.34 | R28: =IFERROR(IF($F28>0,$AA28*(1-Settings!$B$3),""),"") -> 42.672 | S28: STOP | T28: 45.2 | U28: 2015-07-14 | V28: 0 | W28: 0 | X28: 129.47 | Y28: 0.01159031845 | Z28: 11300 | AA28: 44.45 | AB28: 0 | AC28: 0 | AD28: 129.47 | AE28: =IF($C28<>"",GetStockNumParam($C28,"h"),"") -> 41.62 | AF28: 11170.53 | AG28: 11300 | AH28: 129.47
A29: ELEMENT FLEET MANAGEMENT CORP | B29: OUT Position | C29: EFN.TO | D29: 500 | E29: CAD | F29: 19.34 | G29: 2015-07-10 | H29: 9.99 | I29: 9680.99 | J29: 12.75 | K29: 13 | L29: 0.25 | M29: 0.01960784314 | N29: SOLD | O29: 119.01 | P29: 0.01229316423 | Q29: =IFERROR(IF($F29>0,IF($B$6="Canada",IF($E29="CAD",$F29*((Settings!$B$2)+1),$F29*$E$9*((Settings!$B$2)+1)), IF($E29="USD",$F29*((Settings!$B$2)+1),$F29*$E$9*((Settings!$B$2)+1))),””),"") -> 23.208 | R29: =IFERROR(IF($F29>0,$AA29*(1-Settings!$B$3),""),"") -> 18.5664 | S29: STOP | T29: 19.6 | U29: 2015-07-15 | V29: 0 | W29: 0 | X29: 119.01 | Y29: 0.01229316423 | Z29: 9800 | AA29: 19.34 | AB29: 0 | AC29: 0 | AD29: 119.01 | AE29: =IF($C29<>"",GetStockNumParam($C29,"h"),"") -> 13.04 | AF29: 9680.99 | AG29: 9800 | AH29: 119.01
Q30: =IFERROR(IF($F30>0,IF($B$6="Canada",IF($E30="CAD",$F30*((Settings!$B$2)+1),$F30*$E$9*((Settings!$B$2)+1)), IF($E30="USD",$F30*((Settings!$B$2)+1),$F30*$E$9*((Settings!$B$2)+1))),””),"") ->  | R30: =IFERROR(IF($F30>0,$AA30*(1-Settings!$B$3),""),"") ->  | AA30: 0 | AC30: 0 | AD30: 0 | AE30: =IF($C30<>"",GetStockNumParam($C30,"h"),"") ->  | AF30: 0
A31: BOMBARDIER INC., CL. A, MV | B31: Watching | C31: BBD-A.TO | D31: 0 | I31: 0 | J31: 2.64 | K31: 2.62 | L31: -0.02 | M31: -0.007575757576 | Q31: =IFERROR(IF($F31>0,IF($B$6="Canada",IF($E31="CAD",$F31*((Settings!$B$2)+1),$F31*$E$9*((Settings!$B$2)+1)), IF($E31="USD",$F31*((Settings!$B$2)+1),$F31*$E$9*((Settings!$B$2)+1))),””),"") ->  | R31: =IFERROR(IF($F31>0,$AA31*(1-Settings!$B$3),""),"") ->  | AA31: 2.62 | AC31: 0 | AD31: 0 | AE31: =IF($C31<>"",GetStockNumParam($C31,"h"),"") -> 2.65 | AF31: 0
A32: BOMBARDIER INC., CL. B, SV | B32: Watching | C32: BBD-B.TO | D32: 0 | I32: 0 | J32: 2.59 | K32: 2.575 | L32: -0.015 | M32: -0.005791505792 | Q32: =IFERROR(IF($F32>0,IF($B$6="Canada",IF($E32="CAD",$F32*((Settings!$B$2)+1),$F32*$E$9*((Settings!$B$2)+1)), IF($E32="USD",$F32*((Settings!$B$2)+1),$F32*$E$9*((Settings!$B$2)+1))),””),"") ->  | R32: =IFERROR(IF($F32>0,$AA32*(1-Settings!$B$3),""),"") ->  | AA32: 2.575 | AC32: 0 | AD32: 0 | AE32: =IF($C32<>"",GetStockNumParam($C32,"h"),"") -> 2.58 | AF32: 0
A33: SAPUTO INC. | B33: Watching | C33: SAP.TO | D33: 0 | I33: 0 | J33: 45.55 | K33: 44.725 | L33: -0.825 | M33: -0.01811196487 | Q33: =IFERROR(IF($F33>0,IF($B$6="Canada",IF($E33="CAD",$F33*((Settings!$B$2)+1),$F33*$E$9*((Settings!$B$2)+1)), IF($E33="USD",$F33*((Settings!$B$2)+1),$F33*$E$9*((Settings!$B$2)+1))),””),"") ->  | R33: =IFERROR(IF($F33>0,$AA33*(1-Settings!$B$3),""),"") ->  | AA33: 44.725 | AC33: 0 | AD33: 0 | AE33: =IF($C33<>"",GetStockNumParam($C33,"h"),"") -> 45.44 | AF33: 0
A34: TD US Small-Cap Equity - I | B34: Watching | C34: TD.TO | D34: 0 | I34: 0 | J34: 67.49 | K34: 67.45 | L34: -0.04 | M34: -0.0005926803971 | Q34: =IFERROR(IF($F34>0,IF($B$6="Canada",IF($E34="CAD",$F34*((Settings!$B$2)+1),$F34*$E$9*((Settings!$B$2)+1)), IF($E34="USD",$F34*((Settings!$B$2)+1),$F34*$E$9*((Settings!$B$2)+1))),””),"") ->  | R34: =IFERROR(IF($F34>0,$AA34*(1-Settings!$B$3),""),"") ->  | AA34: 67.45 | AC34: 0 | AD34: 0 | AE34: =IF($C34<>"",GetStockNumParam($C34,"h"),"") -> 67.82 | AF34: 0
A35: AIRBOSS AMERICA J | B35: Watching | C35: BOS.TO | D35: 0 | I35: 0 | J35: 13.26 | K35: 13.08 | L35: -0.18 | M35: -0.01357466063 | Q35: =IFERROR(IF($F35>0,IF($B$6="Canada",IF($E35="CAD",$F35*((Settings!$B$2)+1),$F35*$E$9*((Settings!$B$2)+1)), IF($E35="USD",$F35*((Settings!$B$2)+1),$F35*$E$9*((Settings!$B$2)+1))),””),"") ->  | R35: =IFERROR(IF($F35>0,$AA35*(1-Settings!$B$3),""),"") ->  | AA35: 13.08 | AC35: 0 | AD35: 0 | AE35: =IF($C35<>"",GetStockNumParam($C35,"h"),"") -> 13.27 | AF35: 0
Q36: =IFERROR(IF($F36>0,IF($B$6="Canada",IF($E36="CAD",$F36*((Settings!$B$2)+1),$F36*$E$9*((Settings!$B$2)+1)), IF($E36="USD",$F36*((Settings!$B$2)+1),$F36*$E$9*((Settings!$B$2)+1))),””),"") ->  | R36: =IFERROR(IF($F36>0,$AA36*(1-Settings!$B$3),""),"") ->  | AA36: 0 | AC36: 0 | AD36: 0 | AE36: =IF($C36<>"",GetStockNumParam($C36,"h"),"") ->  | AF36: 0
A37: CANADIAN NATIONAL RAILWAY CO. | B37: Simulate | C37: CNR.TO | D37: 650 | E37: CAD | F37: 77.81 | G37: 2015-07-17 | H37: 9 | I37: 50585.5 | J37: 90.36 | K37: 89.72 | L37: -0.64 | M37: -0.007082779991 | N37: 58318 | O37: 7732.5 | P37: 0.1528600093 | Q37: =IFERROR(IF($F37>0,IF($B$6="Canada",IF($E37="CAD",$F37*((Settings!$B$2)+1),$F37*$E$9*((Settings!$B$2)+1)), IF($E37="USD",$F37*((Settings!$B$2)+1),$F37*$E$9*((Settings!$B$2)+1))),””),"") -> 93.372 | R37: =IFERROR(IF($F37>0,$AA37*(1-Settings!$B$3),""),"") -> 86.1312 | S37: HOLD | X37: 7732.5 | Y37: 0.1528600093 | Z37: 58318 | AA37: 89.72 | AB37: 0 | AC37: 0 | AD37: 50585.5 | AE37: =IF($C37<>"",GetStockNumParam($C37,"h"),"") -> 90.31 | AF37: 0 | AG37: 0
A38: BANK OF NOVA SCOTIA | B38: Simulate | C38: BNS.TO | D38: 800 | E38: CAD | F38: 64.37 | G38: 2015-07-17 | H38: 9 | I38: 51505 | J38: 78.4 | K38: 78.3 | L38: -0.1 | M38: -0.001275510204 | N38: 62640 | O38: 11135 | P38: 0.2161926027 | Q38: =IFERROR(IF($F38>0,IF($B$6="Canada",IF($E38="CAD",$F38*((Settings!$B$2)+1),$F38*$E$9*((Settings!$B$2)+1)), IF($E38="USD",$F38*((Settings!$B$2)+1),$F38*$E$9*((Settings!$B$2)+1))),””),"") -> 77.244 | R38: =IFERROR(IF($F38>0,$AA38*(1-Settings!$B$3),""),"") -> 75.168 | S38: SELL | X38: 11135 | Y38: 0.2161926027 | Z38: 62640 | AA38: 78.3 | AB38: 0 | AC38: 0 | AD38: 51505 | AE38: =IF($C38<>"",GetStockNumParam($C38,"h"),"") -> 78.53 | AF38: 0 | AG38: 0
A39: CANADIAN NATIONAL RAILWAY CO. | B39: Simulate | C39: CNR.TO | D39: 700 | E39: CAD | F39: 82 | G39: 2015-02-22 | H39: 0 | I39: 57400 | J39: 90.36 | K39: 89.72 | L39: -0.64 | M39: -0.007082779991 | N39: 62804 | O39: 5404 | P39: 0.09414634146 | Q39: =IFERROR(IF($F39>0,IF($B$6="Canada",IF($E39="CAD",$F39*((Settings!$B$2)+1),$F39*$E$9*((Settings!$B$2)+1)), IF($E39="USD",$F39*((Settings!$B$2)+1),$F39*$E$9*((Settings!$B$2)+1))),””),"") -> 98.4 | R39: =IFERROR(IF($F39>0,$AA39*(1-Settings!$B$3),""),"") -> 86.1312 | S39: HOLD | X39: 5404 | Y39: 0.09414634146 | Z39: 62804 | AA39: 89.72 | AB39: 0 | AC39: 0 | AD39: 57400 | AE39: =IF($C39<>"",GetStockNumParam($C39,"h"),"") -> 90.31 | AF39: 0 | AG39: 0
Q40: =IFERROR(IF($F40>0,IF($B$6="Canada",IF($E40="CAD",$F40*((Settings!$B$2)+1),$F40*$E$9*((Settings!$B$2)+1)), IF($E40="USD",$F40*((Settings!$B$2)+1),$F40*$E$9*((Settings!$B$2)+1))),””),"") ->  | R40: =IFERROR(IF($F40>0,$AA40*(1-Settings!$B$3),""),"") ->  | AA40: 0 | AC40: 0 | AD40: 0 | AE40: =IF($C40<>"",GetStockNumParam($C40,"h"),"") ->  | AF40: 0
Q41: =IFERROR(IF($F41>0,IF($B$6="Canada",IF($E41="CAD",$F41*((Settings!$B$2)+1),$F41*$E$9*((Settings!$B$2)+1)), IF($E41="USD",$F41*((Settings!$B$2)+1),$F41*$E$9*((Settings!$B$2)+1))),””),"") ->  | R41: =IFERROR(IF($F41>0,$AA41*(1-Settings!$B$3),""),"") ->  | AA41: 0 | AC41: 0 | AD41: 0 | AE41: =IF($C41<>"",GetStockNumParam($C41,"h"),"") ->  | AF41: 0
Q42: =IFERROR(IF($F42>0,IF($B$6="Canada",IF($E42="CAD",$F42*((Settings!$B$2)+1),$F42*$E$9*((Settings!$B$2)+1)), IF($E42="USD",$F42*((Settings!$B$2)+1),$F42*$E$9*((Settings!$B$2)+1))),””),"") ->  | R42: =IFERROR(IF($F42>0,$AA42*(1-Settings!$B$3),""),"") ->  | AA42: 0 | AC42: 0 | AD42: 0 | AE42: =IF($C42<>"",GetStockNumParam($C42,"h"),"") ->  | AF42: 0
Q43: =IFERROR(IF($F43>0,IF($B$6="Canada",IF($E43="CAD",$F43*((Settings!$B$2)+1),$F43*$E$9*((Settings!$B$2)+1)), IF($E43="USD",$F43*((Settings!$B$2)+1),$F43*$E$9*((Settings!$B$2)+1))),””),"") ->  | R43: =IFERROR(IF($F43>0,$AA43*(1-Settings!$B$3),""),"") ->  | AA43: 0 | AC43: 0 | AD43: 0 | AE43: =IF($C43<>"",GetStockNumParam($C43,"h"),"") ->  | AF43: 0
A44: BMO INDIA EQUITY INDEX ETF | B44: Watching | C44: ZID.TO | D44: 0 | I44: 0 | J44: 18.82 | K44: 19.16 | L44: 0.34 | M44: 0.01806588735 | Q44: =IFERROR(IF($F44>0,IF($B$6="Canada",IF($E44="CAD",$F44*((Settings!$B$2)+1),$F44*$E$9*((Settings!$B$2)+1)), IF($E44="USD",$F44*((Settings!$B$2)+1),$F44*$E$9*((Settings!$B$2)+1))),””),"") ->  | R44: =IFERROR(IF($F44>0,$AA44*(1-Settings!$B$3),""),"") ->  | AA44: 19.16 | AC44: 0 | AD44: 0 | AE44: =IF($C44<>"",GetStockNumParam($C44,"h"),"") -> 19.16 | AF44: 0
A45: iSHARES SP TSX CAPPED CONS STPL | B45: Watching | C45: XST.TO | D45: 0 | I45: 0 | J45: 51.4 | K45: 51.01 | L45: -0.39 | M45: -0.007587548638 | Q45: =IFERROR(IF($F45>0,IF($B$6="Canada",IF($E45="CAD",$F45*((Settings!$B$2)+1),$F45*$E$9*((Settings!$B$2)+1)), IF($E45="USD",$F45*((Settings!$B$2)+1),$F45*$E$9*((Settings!$B$2)+1))),””),"") ->  | R45: =IFERROR(IF($F45>0,$AA45*(1-Settings!$B$3),""),"") ->  | AA45: 51.01 | AC45: 0 | AD45: 0 | AE45: =IF($C45<>"",GetStockNumParam($C45,"h"),"") -> 51.39 | AF45: 0
A46: QUEBECOR INC., CL.B, SV | B46: Watching | C46: QBR-B.TO | D46: 0 | I46: 0 | J46: 38.99 | K46: 39.14 | L46: 0.15 | M46: 0.003847140292 | Q46: =IFERROR(IF($F46>0,IF($B$6="Canada",IF($E46="CAD",$F46*((Settings!$B$2)+1),$F46*$E$9*((Settings!$B$2)+1)), IF($E46="USD",$F46*((Settings!$B$2)+1),$F46*$E$9*((Settings!$B$2)+1))),””),"") ->  | R46: =IFERROR(IF($F46>0,$AA46*(1-Settings!$B$3),""),"") ->  | AA46: 39.14 | AC46: 0 | AD46: 0 | AE46: =IF($C46<>"",GetStockNumParam($C46,"h"),"") -> 39.25 | AF46: 0
Q47: =IFERROR(IF($F47>0,IF($B$6="Canada",IF($E47="CAD",$F47*((Settings!$B$2)+1),$F47*$E$9*((Settings!$B$2)+1)), IF($E47="USD",$F47*((Settings!$B$2)+1),$F47*$E$9*((Settings!$B$2)+1))),””),"") ->  | R47: =IFERROR(IF($F47>0,$AA47*(1-Settings!$B$3),""),"") ->  | AA47: 0 | AC47: 0 | AD47: 0 | AE47: =IF($C47<>"",GetStockNumParam($C47,"h"),"") ->  | AF47: 0
Q48: =IFERROR(IF($F48>0,IF($B$6="Canada",IF($E48="CAD",$F48*((Settings!$B$2)+1),$F48*$E$9*((Settings!$B$2)+1)), IF($E48="USD",$F48*((Settings!$B$2)+1),$F48*$E$9*((Settings!$B$2)+1))),””),"") ->  | R48: =IFERROR(IF($F48>0,$AA48*(1-Settings!$B$3),""),"") ->  | AA48: 0 | AC48: 0 | AD48: 0 | AE48: =IF($C48<>"",GetStockNumParam($C48,"h"),"") ->  | AF48: 0
A49: AMERICAS SILVER CORPORATION | B49: Simulate | C49: SPM.TO | D49: 1000 | E49: CAD | F49: 0.17 | G49: 2015-07-26 | H49: 0 | I49: 170 | J49: 0 | K49: 0 | N49: 0 | O49: -170 | P49: -1 | Q49: =IFERROR(IF($F49>0,IF($B$6="Canada",IF($E49="CAD",$F49*((Settings!$B$2)+1),$F49*$E$9*((Settings!$B$2)+1)), IF($E49="USD",$F49*((Settings!$B$2)+1),$F49*$E$9*((Settings!$B$2)+1))),””),"") -> 0.204 | R49: =IFERROR(IF($F49>0,$AA49*(1-Settings!$B$3),""),"") -> 0.1632 | S49: STOP | X49: 0 | Y49: 0 | Z49: 0 | AA49: 0.17 | AB49: 0 | AC49: 0 | AD49: 170 | AE49: =IF($C49<>"",GetStockNumParam($C49,"h"),"") -> 0 | AF49: 0 | AG49: 0
A50: GOLDEN ARROW RES CORP. | B50: Simulate | C50: GRG.V | D50: 1000 | E50: CAD | F50: 0.29 | G50: 2015-07-26 | H50: 0 | I50: 290 | J50: 0.74 | K50: 0.76 | L50: 0.02 | M50: 0.02702702703 | N50: 760 | O50: 470 | P50: 1.620689655 | Q50: =IFERROR(IF($F50>0,IF($B$6="Canada",IF($E50="CAD",$F50*((Settings!$B$2)+1),$F50*$E$9*((Settings!$B$2)+1)), IF($E50="USD",$F50*((Settings!$B$2)+1),$F50*$E$9*((Settings!$B$2)+1))),””),"") -> 0.348 | R50: =IFERROR(IF($F50>0,$AA50*(1-Settings!$B$3),""),"") -> 0.7296 | S50: SELL | X50: 470 | Y50: 1.620689655 | Z50: 760 | AA50: 0.76 | AB50: 0 | AC50: 0 | AD50: 290 | AE50: =IF($C50<>"",GetStockNumParam($C50,"h"),"") -> 0.76 | AF50: 0 | AG50: 0
A51: YAMANA GOLD INC | B51: Simulate | C51: YRI.TO | D51: 1000 | E51: CAD | F51: 2.67 | G51: 2015-07-26 | H51: 0 | I51: 2670 | J51: 4.43 | K51: 4.64 | L51: 0.21 | M51: 0.04740406321 | N51: 4640 | O51: 1970 | P51: 0.7378277154 | Q51: =IFERROR(IF($F51>0,IF($B$6="Canada",IF($E51="CAD",$F51*((Settings!$B$2)+1),$F51*$E$9*((Settings!$B$2)+1)), IF($E51="USD",$F51*((Settings!$B$2)+1),$F51*$E$9*((Settings!$B$2)+1))),””),"") -> 3.204 | R51: =IFERROR(IF($F51>0,$AA51*(1-Settings!$B$3),""),"") -> 4.4544 | S51: SELL | X51: 1970 | Y51: 0.7378277154 | Z51: 4640 | AA51: 4.64 | AB51: 0 | AC51: 0 | AD51: 2670 | AE51: =IF($C51<>"",GetStockNumParam($C51,"h"),"") -> 4.64 | AF51: 0 | AG51: 0
A52: GOLDCORP INC | B52: Simulate | C52: G.TO | D52: 1000 | E52: CAD | F52: 17.35 | G52: 2015-07-26 | H52: 0 | I52: 17350 | J52: 21.21 | K52: 21.93 | L52: 0.72 | M52: 0.03394625177 | N52: 21930 | O52: 4580 | P52: 0.2639769452 | Q52: =IFERROR(IF($F52>0,IF($B$6="Canada",IF($E52="CAD",$F52*((Settings!$B$2)+1),$F52*$E$9*((Settings!$B$2)+1)), IF($E52="USD",$F52*((Settings!$B$2)+1),$F52*$E$9*((Settings!$B$2)+1))),””),"") -> 20.82 | R52: =IFERROR(IF($F52>0,$AA52*(1-Settings!$B$3),""),"") -> 21.0528 | S52: SELL | X52: 4580 | Y52: 0.2639769452 | Z52: 21930 | AA52: 21.93 | AB52: 0 | AC52: 0 | AD52: 17350 | AE52: =IF($C52<>"",GetStockNumParam($C52,"h"),"") -> 21.96 | AF52: 0 | AG52: 0
A53: BARRICK GOLD CORPORATION | B53: Simulate | C53: ABX.TO | D53: 1000 | E53: CAD | F53: 9.47 | G53: 2015-07-26 | H53: 0 | I53: 9470 | J53: 24.67 | K53: 25.3 | L53: 0.63 | M53: 0.02553708958 | N53: 25300 | O53: 15830 | P53: 1.671594509 | Q53: =IFERROR(IF($F53>0,IF($B$6="Canada",IF($E53="CAD",$F53*((Settings!$B$2)+1),$F53*$E$9*((Settings!$B$2)+1)), IF($E53="USD",$F53*((Settings!$B$2)+1),$F53*$E$9*((Settings!$B$2)+1))),””),"") -> 11.364 | R53: =IFERROR(IF($F53>0,$AA53*(1-Settings!$B$3),""),"") -> 24.288 | S53: SELL | X53: 15830 | Y53: 1.671594509 | Z53: 25300 | AA53: 25.3 | AB53: 0 | AC53: 0 | AD53: 9470 | AE53: =IF($C53<>"",GetStockNumParam($C53,"h"),"") -> 25.31 | AF53: 0 | AG53: 0
A54: KINROSS GOLD CORP. | B54: Simulate | C54: K.TO | D54: 1000 | E54: CAD | F54: 2.22 | G54: 2015-07-26 | H54: 0 | I54: 2220 | J54: 5.1 | K54: 5.38 | L54: 0.28 | M54: 0.05490196078 | N54: 5380 | O54: 3160 | P54: 1.423423423 | Q54: =IFERROR(IF($F54>0,IF($B$6="Canada",IF($E54="CAD",$F54*((Settings!$B$2)+1),$F54*$E$9*((Settings!$B$2)+1)), IF($E54="USD",$F54*((Settings!$B$2)+1),$F54*$E$9*((Settings!$B$2)+1))),””),"") -> 2.664 | R54: =IFERROR(IF($F54>0,$AA54*(1-Settings!$B$3),""),"") -> 5.1648 | S54: SELL | X54: 3160 | Y54: 1.423423423 | Z54: 5380 | AA54: 5.38 | AB54: 0 | AC54: 0 | AD54: 2220 | AE54: =IF($C54<>"",GetStockNumParam($C54,"h"),"") -> 5.38 | AF54: 0 | AG54: 0
A55: DETOUR GOLD CORPORATION | B55: Simulate | C55: DGC.TO | D55: 1000 | E55: CAD | F55: 11.51 | G55: 2015-07-26 | H55: 0 | I55: 11510 | J55: 18.72 | K55: 19.72 | L55: 1 | M55: 0.05341880342 | N55: 19720 | O55: 8210 | P55: 0.7132927889 | Q55: =IFERROR(IF($F55>0,IF($B$6="Canada",IF($E55="CAD",$F55*((Settings!$B$2)+1),$F55*$E$9*((Settings!$B$2)+1)), IF($E55="USD",$F55*((Settings!$B$2)+1),$F55*$E$9*((Settings!$B$2)+1))),””),"") -> 13.812 | R55: =IFERROR(IF($F55>0,$AA55*(1-Settings!$B$3),""),"") -> 18.9312 | S55: SELL | X55: 8210 | Y55: 0.7132927889 | Z55: 19720 | AA55: 19.72 | AB55: 0 | AC55: 0 | AD55: 11510 | AE55: =IF($C55<>"",GetStockNumParam($C55,"h"),"") -> 19.75 | AF55: 0 | AG55: 0
A56: SILVER WHEATON CORP. | B56: Simulate | C56: SLW.TO | D56: 1000 | E56: CAD | F56: 16.87 | G56: 2015-07-26 | H56: 0 | I56: 16870 | J56: 28.92 | K56: 29.54 | L56: 0.62 | M56: 0.0214384509 | N56: 29540 | O56: 12670 | P56: 0.7510373444 | Q56: =IFERROR(IF($F56>0,IF($B$6="Canada",IF($E56="CAD",$F56*((Settings!$B$2)+1),$F56*$E$9*((Settings!$B$2)+1)), IF($E56="USD",$F56*((Settings!$B$2)+1),$F56*$E$9*((Settings!$B$2)+1))),””),"") -> 20.244 | R56: =IFERROR(IF($F56>0,$AA56*(1-Settings!$B$3),""),"") -> 28.3584 | S56: SELL | X56: 12670 | Y56: 0.7510373444 | Z56: 29540 | AA56: 29.54 | AB56: 0 | AC56: 0 | AD56: 16870 | AE56: =IF($C56<>"",GetStockNumParam($C56,"h"),"") -> 29.55 | AF56: 0 | AG56: 0
A57: TAHOE RESOURCES INC | B57: Simulate | C57: THO.TO | D57: 1000 | E57: CAD | F57: 10.95 | G57: 2015-07-26 | H57: 0 | I57: 10950 | J57: 11.77 | K57: 12.26 | L57: 0.49 | M57: 0.04163126593 | N57: 12260 | O57: 1310 | P57: 0.1196347032 | Q57: =IFERROR(IF($F57>0,IF($B$6="Canada",IF($E57="CAD",$F57*((Settings!$B$2)+1),$F57*$E$9*((Settings!$B$2)+1)), IF($E57="USD",$F57*((Settings!$B$2)+1),$F57*$E$9*((Settings!$B$2)+1))),””),"") -> 13.14 | R57: =IFERROR(IF($F57>0,$AA57*(1-Settings!$B$3),""),"") -> 11.7696 | S57: HOLD | X57: 1310 | Y57: 0.1196347032 | Z57: 12260 | AA57: 12.26 | AB57: 0 | AC57: 0 | AD57: 10950 | AE57: =IF($C57<>"",GetStockNumParam($C57,"h"),"") -> 12.27 | AF57: 0 | AG57: 0
A58: PAN AMERICAN J | B58: Simulate | C58: PAA.TO | D58: 1000 | E58: CAD | F58: 8.39 | G58: 2015-07-26 | H58: 0 | I58: 8390 | J58: 24.53 | K58: 25.36 | L58: 0.83 | M58: 0.03383611904 | N58: 25360 | O58: 16970 | P58: 2.022646007 | Q58: =IFERROR(IF($F58>0,IF($B$6="Canada",IF($E58="CAD",$F58*((Settings!$B$2)+1),$F58*$E$9*((Settings!$B$2)+1)), IF($E58="USD",$F58*((Settings!$B$2)+1),$F58*$E$9*((Settings!$B$2)+1))),””),"") -> 10.068 | R58: =IFERROR(IF($F58>0,$AA58*(1-Settings!$B$3),""),"") -> 24.3456 | S58: SELL | X58: 16970 | Y58: 2.022646007 | Z58: 25360 | AA58: 25.36 | AB58: 0 | AC58: 0 | AD58: 8390 | AE58: =IF($C58<>"",GetStockNumParam($C58,"h"),"") -> 25.67 | AF58: 0 | AG58: 0
A59: MAG SILVER CORP. | B59: Simulate | C59: MAG.TO | D59: 1000 | E59: CAD | F59: 8.87 | G59: 2015-07-26 | H59: 0 | I59: 8870 | J59: 19.52 | K59: 20.62 | L59: 1.1 | M59: 0.05635245902 | N59: 20620 | O59: 11750 | P59: 1.324689966 | Q59: =IFERROR(IF($F59>0,IF($B$6="Canada",IF($E59="CAD",$F59*((Settings!$B$2)+1),$F59*$E$9*((Settings!$B$2)+1)), IF($E59="USD",$F59*((Settings!$B$2)+1),$F59*$E$9*((Settings!$B$2)+1))),””),"") -> 10.644 | R59: =IFERROR(IF($F59>0,$AA59*(1-Settings!$B$3),""),"") -> 19.7952 | S59: SELL | X59: 11750 | Y59: 1.324689966 | Z59: 20620 | AA59: 20.62 | AB59: 0 | AC59: 0 | AD59: 8870 | AE59: =IF($C59<>"",GetStockNumParam($C59,"h"),"") -> 20.7 | AF59: 0 | AG59: 0
A60: GOLDMONEY INC | B60: Simulate | C60: XAU.V | D60: 1000 | E60: CAD | F60: 5.4 | G60: 2015-07-26 | H60: 0 | I60: 5400 | J60: 4.49 | K60: 4.49 | L60: 0 | M60: 0 | N60: 4490 | O60: -910 | P60: -0.1685185185 | Q60: =IFERROR(IF($F60>0,IF($B$6="Canada",IF($E60="CAD",$F60*((Settings!$B$2)+1),$F60*$E$9*((Settings!$B$2)+1)), IF($E60="USD",$F60*((Settings!$B$2)+1),$F60*$E$9*((Settings!$B$2)+1))),””),"") -> 6.48 | R60: =IFERROR(IF($F60>0,$AA60*(1-Settings!$B$3),""),"") -> 5.184 | S60: STOP | X60: -910 | Y60: -0.1685185185 | Z60: 4490 | AA60: 5.4 | AB60: 0 | AC60: 0 | AD60: 5400 | AE60: =IF($C60<>"",GetStockNumParam($C60,"h"),"") -> 4.55 | AF60: 0 | AG60: 0
Q61: =IFERROR(IF($F61>0,IF($B$6="Canada",IF($E61="CAD",$F61*((Settings!$B$2)+1),$F61*$E$9*((Settings!$B$2)+1)), IF($E61="USD",$F61*((Settings!$B$2)+1),$F61*$E$9*((Settings!$B$2)+1))),””),"") ->  | R61: =IFERROR(IF($F61>0,$AA61*(1-Settings!$B$3),""),"") ->  | AA61: 0 | AC61: 0 | AD61: 0 | AE61: =IF($C61<>"",GetStockNumParam($C61,"h"),"") ->  | AF61: 0
Q62: =IFERROR(IF($F62>0,IF($B$6="Canada",IF($E62="CAD",$F62*((Settings!$B$2)+1),$F62*$E$9*((Settings!$B$2)+1)), IF($E62="USD",$F62*((Settings!$B$2)+1),$F62*$E$9*((Settings!$B$2)+1))),””),"") ->  | R62: =IFERROR(IF($F62>0,$AA62*(1-Settings!$B$3),""),"") ->  | AA62: 0 | AC62: 0 | AD62: 0 | AE62: =IF($C62<>"",GetStockNumParam($C62,"h"),"") ->  | AF62: 0
Q63: =IFERROR(IF($F63>0,IF($B$6="Canada",IF($E63="CAD",$F63*((Settings!$B$2)+1),$F63*$E$9*((Settings!$B$2)+1)), IF($E63="USD",$F63*((Settings!$B$2)+1),$F63*$E$9*((Settings!$B$2)+1))),””),"") ->  | R63: =IFERROR(IF($F63>0,$AA63*(1-Settings!$B$3),""),"") ->  | AA63: 0 | AC63: 0 | AD63: 0 | AE63: =IF($C63<>"",GetStockNumParam($C63,"h"),"") ->  | AF63: 0
Q64: =IFERROR(IF($F64>0,IF($B$6="Canada",IF($E64="CAD",$F64*((Settings!$B$2)+1),$F64*$E$9*((Settings!$B$2)+1)), IF($E64="USD",$F64*((Settings!$B$2)+1),$F64*$E$9*((Settings!$B$2)+1))),””),"") ->  | R64: =IFERROR(IF($F64>0,$AA64*(1-Settings!$B$3),""),"") ->  | AA64: 0 | AC64: 0 | AD64: 0 | AE64: =IF($C64<>"",GetStockNumParam($C64,"h"),"") ->  | AF64: 0
Q65: =IFERROR(IF($F65>0,IF($B$6="Canada",IF($E65="CAD",$F65*((Settings!$B$2)+1),$F65*$E$9*((Settings!$B$2)+1)), IF($E65="USD",$F65*((Settings!$B$2)+1),$F65*$E$9*((Settings!$B$2)+1))),””),"") ->  | R65: =IFERROR(IF($F65>0,$AA65*(1-Settings!$B$3),""),"") ->  | AA65: 0 | AC65: 0 | AD65: 0 | AE65: =IF($C65<>"",GetStockNumParam($C65,"h"),"") ->  | AF65: 0
Q66: =IFERROR(IF($F66>0,IF($B$6="Canada",IF($E66="CAD",$F66*((Settings!$B$2)+1),$F66*$E$9*((Settings!$B$2)+1)), IF($E66="USD",$F66*((Settings!$B$2)+1),$F66*$E$9*((Settings!$B$2)+1))),””),"") ->  | R66: =IFERROR(IF($F66>0,$AA66*(1-Settings!$B$3),""),"") ->  | AA66: 0 | AC66: 0 | AD66: 0 | AE66: =IF($C66<>"",GetStockNumParam($C66,"h"),"") ->  | AF66: 0
Q67: =IFERROR(IF($F67>0,IF($B$6="Canada",IF($E67="CAD",$F67*((Settings!$B$2)+1),$F67*$E$9*((Settings!$B$2)+1)), IF($E67="USD",$F67*((Settings!$B$2)+1),$F67*$E$9*((Settings!$B$2)+1))),””),"") ->  | R67: =IFERROR(IF($F67>0,$AA67*(1-Settings!$B$3),""),"") ->  | AA67: 0 | AC67: 0 | AD67: 0 | AE67: =IF($C67<>"",GetStockNumParam($C67,"h"),"") ->  | AF67: 0
Q68: =IFERROR(IF($F68>0,IF($B$6="Canada",IF($E68="CAD",$F68*((Settings!$B$2)+1),$F68*$E$9*((Settings!$B$2)+1)), IF($E68="USD",$F68*((Settings!$B$2)+1),$F68*$E$9*((Settings!$B$2)+1))),””),"") ->  | R68: =IFERROR(IF($F68>0,$AA68*(1-Settings!$B$3),""),"") ->  | AA68: 0 | AC68: 0 | AD68: 0 | AE68: =IF($C68<>"",GetStockNumParam($C68,"h"),"") ->  | AF68: 0
Q69: =IFERROR(IF($F69>0,IF($B$6="Canada",IF($E69="CAD",$F69*((Settings!$B$2)+1),$F69*$E$9*((Settings!$B$2)+1)), IF($E69="USD",$F69*((Settings!$B$2)+1),$F69*$E$9*((Settings!$B$2)+1))),””),"") ->  | R69: =IFERROR(IF($F69>0,$AA69*(1-Settings!$B$3),""),"") ->  | AA69: 0 | AC69: 0 | AD69: 0 | AE69: =IF($C69<>"",GetStockNumParam($C69,"h"),"") ->  | AF69: 0
Q70: =IFERROR(IF($F70>0,IF($B$6="Canada",IF($E70="CAD",$F70*((Settings!$B$2)+1),$F70*$E$9*((Settings!$B$2)+1)), IF($E70="USD",$F70*((Settings!$B$2)+1),$F70*$E$9*((Settings!$B$2)+1))),””),"") ->  | R70: =IFERROR(IF($F70>0,$AA70*(1-Settings!$B$3),""),"") ->  | AA70: 0 | AC70: 0 | AD70: 0 | AE70: =IF($C70<>"",GetStockNumParam($C70,"h"),"") ->  | AF70: 0
Q71: =IFERROR(IF($F71>0,IF($B$6="Canada",IF($E71="CAD",$F71*((Settings!$B$2)+1),$F71*$E$9*((Settings!$B$2)+1)), IF($E71="USD",$F71*((Settings!$B$2)+1),$F71*$E$9*((Settings!$B$2)+1))),””),"") ->  | R71: =IFERROR(IF($F71>0,$AA71*(1-Settings!$B$3),""),"") ->  | AA71: 0 | AC71: 0 | AD71: 0 | AE71: =IF($C71<>"",GetStockNumParam($C71,"h"),"") ->  | AF71: 0
Q72: =IFERROR(IF($F72>0,IF($B$6="Canada",IF($E72="CAD",$F72*((Settings!$B$2)+1),$F72*$E$9*((Settings!$B$2)+1)), IF($E72="USD",$F72*((Settings!$B$2)+1),$F72*$E$9*((Settings!$B$2)+1))),””),"") ->  | R72: =IFERROR(IF($F72>0,$AA72*(1-Settings!$B$3),""),"") ->  | AA72: 0 | AC72: 0 | AD72: 0 | AE72: =IF($C72<>"",GetStockNumParam($C72,"h"),"") ->  | AF72: 0
Q73: =IFERROR(IF($F73>0,IF($B$6="Canada",IF($E73="CAD",$F73*((Settings!$B$2)+1),$F73*$E$9*((Settings!$B$2)+1)), IF($E73="USD",$F73*((Settings!$B$2)+1),$F73*$E$9*((Settings!$B$2)+1))),””),"") ->  | R73: =IFERROR(IF($F73>0,$AA73*(1-Settings!$B$3),""),"") ->  | AA73: 0 | AC73: 0 | AD73: 0 | AE73: =IF($C73<>"",GetStockNumParam($C73,"h"),"") ->  | AF73: 0
Q74: =IFERROR(IF($F74>0,IF($B$6="Canada",IF($E74="CAD",$F74*((Settings!$B$2)+1),$F74*$E$9*((Settings!$B$2)+1)), IF($E74="USD",$F74*((Settings!$B$2)+1),$F74*$E$9*((Settings!$B$2)+1))),””),"") ->  | R74: =IFERROR(IF($F74>0,$AA74*(1-Settings!$B$3),""),"") ->  | AA74: 0 | AC74: 0 | AD74: 0 | AE74: =IF($C74<>"",GetStockNumParam($C74,"h"),"") ->  | AF74: 0
N75: =IF(D75 > 0,IF(T75 > 0,"SOLD",D75*K75),"") ->  | O75: =IF(D75 > 0,IF(T75 > 0, Z75-I75, N75-I75),"") ->  | P75: =IF(D75 > 0,IF(O75=0,0,(O75/I75)),"") ->  | Q75: =IFERROR(IF($F75>0,IF($B$6="Canada",IF($E75="CAD",$F75*((Settings!$B$2)+1),$F75*$E$9*((Settings!$B$2)+1)), IF($E75="USD",$F75*((Settings!$B$2)+1),$F75*$E$9*((Settings!$B$2)+1))),””),"") ->  | R75: =IFERROR(IF($F75>0,$AA75*(1-Settings!$B$3),""),"") ->  | S75: =IF(F75>0,IF(K75>=Q75,"SELL",IF(K75<=R75,"STOP","HOLD")),"") ->  | X75: =IF(D75 > 0,IF(Z75 = 0,0,Z75-I75),"") ->  | Y75: =IF(D75 > 0,IF(Z75=0,0,(Z75/I75)-100%),"") ->  | Z75: =IF(T75 > 0,T75*D75-V75+W75,N75) ->  | AA75: 0 | AC75: 0 | AD75: =IF(N75 = "SOLD", Z75-I75,I75) -> 0 | AE75: =IF($C75<>"",GetStockNumParam($C75,"h"),"") ->  | AF75: 0
A76: =IF($C76="","",GetName($C76)) ->  | L76: =IF(J76 > 0,K76-J76,"") ->  | M76: =IF(J76 > 0,(L76/J76),"") ->  | Q76: =IFERROR(IF($F76>0,IF($B$6="Canada",IF($E76="CAD",$F76*((Settings!$B$2)+1),$F76*$E$9*((Settings!$B$2)+1)), IF($E76="USD",$F76*((Settings!$B$2)+1),$F76*$E$9*((Settings!$B$2)+1))),””),"") ->  | R76: =IFERROR(IF($F76>0,$AA76*(1-Settings!$B$3),""),"") ->  | AA76: =IF($B$6="Canada", IF($E76="CAD",IF($F76>$K76,$F76,$K76),IF(($F76*$E$9)>$K76,($F76*$E$9),$K76)), IF($E76="CAD",IF(($F76*$E$9)>$K76,($F76*$E$9),$K76),IF($F76>$K76,$F76,$K76))) -> 0 | AB76: =IF($B76="Simulate",0,IF(N76 = "SOLD", 0, N76)) ->  | AC76: =IF($B76="Simulate",0,IF(N76 = "SOLD",0,I76)) -> 0 | AD76: 0 | AE76: =IF($C76<>"",GetStockNumParam($C76,"h"),"") ->  | AF76: =IF($B76="Simulate",0,$I76) -> 0 | AG76: =IF($B76="Simulate",0,Z76) ->  | AH76: =IF($B76="Simulate","",$O76) -> 
Q77: =IFERROR(IF($F77>0,IF($B$6="Canada",IF($E77="CAD",$F77*((Settings!$B$2)+1),$F77*$E$9*((Settings!$B$2)+1)), IF($E77="USD",$F77*((Settings!$B$2)+1),$F77*$E$9*((Settings!$B$2)+1))),””),"") ->  | R77: =IFERROR(IF($F77>0,$AA77*(1-Settings!$B$3),""),"") ->  | AA77: 0 | AC77: 0 | AD77: 0 | AE77: =IF($C77<>"",GetStockNumParam($C77,"h"),"") ->  | AF77: 0
Q78: =IFERROR(IF($F78>0,IF($B$6="Canada",IF($E78="CAD",$F78*((Settings!$B$2)+1),$F78*$E$9*((Settings!$B$2)+1)), IF($E78="USD",$F78*((Settings!$B$2)+1),$F78*$E$9*((Settings!$B$2)+1))),””),"") ->  | R78: =IFERROR(IF($F78>0,$AA78*(1-Settings!$B$3),""),"") ->  | AA78: 0 | AC78: 0 | AD78: 0 | AE78: =IF($C78<>"",GetStockNumParam($C78,"h"),"") ->  | AF78: 0
Q79: =IFERROR(IF($F79>0,IF($B$6="Canada",IF($E79="CAD",$F79*((Settings!$B$2)+1),$F79*$E$9*((Settings!$B$2)+1)), IF($E79="USD",$F79*((Settings!$B$2)+1),$F79*$E$9*((Settings!$B$2)+1))),””),"") ->  | R79: =IFERROR(IF($F79>0,$AA79*(1-Settings!$B$3),""),"") ->  | AA79: 0 | AC79: 0 | AD79: 0 | AE79: =IF($C79<>"",GetStockNumParam($C79,"h"),"") ->  | AF79: 0
Q80: =IFERROR(IF($F80>0,IF($B$6="Canada",IF($E80="CAD",$F80*((Settings!$B$2)+1),$F80*$E$9*((Settings!$B$2)+1)), IF($E80="USD",$F80*((Settings!$B$2)+1),$F80*$E$9*((Settings!$B$2)+1))),””),"") ->  | R80: =IFERROR(IF($F80>0,$AA80*(1-Settings!$B$3),""),"") ->  | AA80: 0 | AC80: 0 | AD80: 0 | AE80: =IF($C80<>"",GetStockNumParam($C80,"h"),"") ->  | AF80: 0
Q81: =IFERROR(IF($F81>0,IF($B$6="Canada",IF($E81="CAD",$F81*((Settings!$B$2)+1),$F81*$E$9*((Settings!$B$2)+1)), IF($E81="USD",$F81*((Settings!$B$2)+1),$F81*$E$9*((Settings!$B$2)+1))),””),"") ->  | R81: =IFERROR(IF($F81>0,$AA81*(1-Settings!$B$3),""),"") ->  | AA81: 0 | AC81: 0 | AD81: 0 | AE81: =IF($C81<>"",GetStockNumParam($C81,"h"),"") ->  | AF81: 0
Q82: =IFERROR(IF($F82>0,IF($B$6="Canada",IF($E82="CAD",$F82*((Settings!$B$2)+1),$F82*$E$9*((Settings!$B$2)+1)), IF($E82="USD",$F82*((Settings!$B$2)+1),$F82*$E$9*((Settings!$B$2)+1))),””),"") ->  | R82: =IFERROR(IF($F82>0,$AA82*(1-Settings!$B$3),""),"") ->  | AA82: 0 | AC82: 0 | AD82: 0 | AE82: =IF($C82<>"",GetStockNumParam($C82,"h"),"") ->  | AF82: 0
Q83: =IFERROR(IF($F83>0,IF($B$6="Canada",IF($E83="CAD",$F83*((Settings!$B$2)+1),$F83*$E$9*((Settings!$B$2)+1)), IF($E83="USD",$F83*((Settings!$B$2)+1),$F83*$E$9*((Settings!$B$2)+1))),””),"") ->  | R83: =IFERROR(IF($F83>0,$AA83*(1-Settings!$B$3),""),"") ->  | AA83: 0 | AC83: 0 | AD83: 0 | AE83: =IF($C83<>"",GetStockNumParam($C83,"h"),"") ->  | AF83: 0
Q84: =IFERROR(IF($F84>0,IF($B$6="Canada",IF($E84="CAD",$F84*((Settings!$B$2)+1),$F84*$E$9*((Settings!$B$2)+1)), IF($E84="USD",$F84*((Settings!$B$2)+1),$F84*$E$9*((Settings!$B$2)+1))),””),"") ->  | R84: =IFERROR(IF($F84>0,$AA84*(1-Settings!$B$3),""),"") ->  | AA84: 0 | AC84: 0 | AD84: 0 | AE84: =IF($C84<>"",GetStockNumParam($C84,"h"),"") ->  | AF84: 0
Q85: =IFERROR(IF($F85>0,IF($B$6="Canada",IF($E85="CAD",$F85*((Settings!$B$2)+1),$F85*$E$9*((Settings!$B$2)+1)), IF($E85="USD",$F85*((Settings!$B$2)+1),$F85*$E$9*((Settings!$B$2)+1))),””),"") ->  | R85: =IFERROR(IF($F85>0,$AA85*(1-Settings!$B$3),""),"") ->  | AA85: 0 | AC85: 0 | AD85: 0 | AE85: =IF($C85<>"",GetStockNumParam($C85,"h"),"") ->  | AF85: 0
Q86: =IFERROR(IF($F86>0,IF($B$6="Canada",IF($E86="CAD",$F86*((Settings!$B$2)+1),$F86*$E$9*((Settings!$B$2)+1)), IF($E86="USD",$F86*((Settings!$B$2)+1),$F86*$E$9*((Settings!$B$2)+1))),””),"") ->  | R86: =IFERROR(IF($F86>0,$AA86*(1-Settings!$B$3),""),"") ->  | AA86: 0 | AC86: 0 | AD86: 0 | AE86: =IF($C86<>"",GetStockNumParam($C86,"h"),"") ->  | AF86: 0
Q87: =IFERROR(IF($F87>0,IF($B$6="Canada",IF($E87="CAD",$F87*((Settings!$B$2)+1),$F87*$E$9*((Settings!$B$2)+1)), IF($E87="USD",$F87*((Settings!$B$2)+1),$F87*$E$9*((Settings!$B$2)+1))),””),"") ->  | R87: =IFERROR(IF($F87>0,$AA87*(1-Settings!$B$3),""),"") ->  | AA87: 0 | AC87: 0 | AD87: 0 | AE87: =IF($C87<>"",GetStockNumParam($C87,"h"),"") ->  | AF87: 0
Q88: =IFERROR(IF($F88>0,IF($B$6="Canada",IF($E88="CAD",$F88*((Settings!$B$2)+1),$F88*$E$9*((Settings!$B$2)+1)), IF($E88="USD",$F88*((Settings!$B$2)+1),$F88*$E$9*((Settings!$B$2)+1))),””),"") ->  | R88: =IFERROR(IF($F88>0,$AA88*(1-Settings!$B$3),""),"") ->  | AA88: 0 | AC88: 0 | AD88: 0 | AE88: =IF($C88<>"",GetStockNumParam($C88,"h"),"") ->  | AF88: 0
Q89: =IFERROR(IF($F89>0,IF($B$6="Canada",IF($E89="CAD",$F89*((Settings!$B$2)+1),$F89*$E$9*((Settings!$B$2)+1)), IF($E89="USD",$F89*((Settings!$B$2)+1),$F89*$E$9*((Settings!$B$2)+1))),””),"") ->  | R89: =IFERROR(IF($F89>0,$AA89*(1-Settings!$B$3),""),"") ->  | AA89: 0 | AC89: 0 | AD89: 0 | AE89: =IF($C89<>"",GetStockNumParam($C89,"h"),"") ->  | AF89: 0
Q90: =IFERROR(IF($F90>0,IF($B$6="Canada",IF($E90="CAD",$F90*((Settings!$B$2)+1),$F90*$E$9*((Settings!$B$2)+1)), IF($E90="USD",$F90*((Settings!$B$2)+1),$F90*$E$9*((Settings!$B$2)+1))),””),"") ->  | R90: =IFERROR(IF($F90>0,$AA90*(1-Settings!$B$3),""),"") ->  | AA90: 0 | AC90: 0 | AD90: 0 | AE90: =IF($C90<>"",GetStockNumParam($C90,"h"),"") ->  | AF90: 0
Q91: =IFERROR(IF($F91>0,IF($B$6="Canada",IF($E91="CAD",$F91*((Settings!$B$2)+1),$F91*$E$9*((Settings!$B$2)+1)), IF($E91="USD",$F91*((Settings!$B$2)+1),$F91*$E$9*((Settings!$B$2)+1))),””),"") ->  | R91: =IFERROR(IF($F91>0,$AA91*(1-Settings!$B$3),""),"") ->  | AA91: 0 | AC91: 0 | AD91: 0 | AE91: =IF($C91<>"",GetStockNumParam($C91,"h"),"") ->  | AF91: 0
Q92: =IFERROR(IF($F92>0,IF($B$6="Canada",IF($E92="CAD",$F92*((Settings!$B$2)+1),$F92*$E$9*((Settings!$B$2)+1)), IF($E92="USD",$F92*((Settings!$B$2)+1),$F92*$E$9*((Settings!$B$2)+1))),””),"") ->  | R92: =IFERROR(IF($F92>0,$AA92*(1-Settings!$B$3),""),"") ->  | AA92: 0 | AC92: 0 | AD92: 0 | AE92: =IF($C92<>"",GetStockNumParam($C92,"h"),"") ->  | AF92: 0
Q93: =IFERROR(IF($F93>0,IF($B$6="Canada",IF($E93="CAD",$F93*((Settings!$B$2)+1),$F93*$E$9*((Settings!$B$2)+1)), IF($E93="USD",$F93*((Settings!$B$2)+1),$F93*$E$9*((Settings!$B$2)+1))),””),"") ->  | R93: =IFERROR(IF($F93>0,$AA93*(1-Settings!$B$3),""),"") ->  | AA93: 0 | AC93: 0 | AD93: 0 | AE93: =IF($C93<>"",GetStockNumParam($C93,"h"),"") ->  | AF93: 0
Q94: =IFERROR(IF($F94>0,IF($B$6="Canada",IF($E94="CAD",$F94*((Settings!$B$2)+1),$F94*$E$9*((Settings!$B$2)+1)), IF($E94="USD",$F94*((Settings!$B$2)+1),$F94*$E$9*((Settings!$B$2)+1))),””),"") ->  | R94: =IFERROR(IF($F94>0,$AA94*(1-Settings!$B$3),""),"") ->  | AA94: 0 | AC94: 0 | AD94: 0 | AE94: =IF($C94<>"",GetStockNumParam($C94,"h"),"") ->  | AF94: 0
Q95: =IFERROR(IF($F95>0,IF($B$6="Canada",IF($E95="CAD",$F95*((Settings!$B$2)+1),$F95*$E$9*((Settings!$B$2)+1)), IF($E95="USD",$F95*((Settings!$B$2)+1),$F95*$E$9*((Settings!$B$2)+1))),””),"") ->  | R95: =IFERROR(IF($F95>0,$AA95*(1-Settings!$B$3),""),"") ->  | AA95: 0 | AC95: 0 | AD95: 0 | AE95: =IF($C95<>"",GetStockNumParam($C95,"h"),"") ->  | AF95: 0
Q96: =IFERROR(IF($F96>0,IF($B$6="Canada",IF($E96="CAD",$F96*((Settings!$B$2)+1),$F96*$E$9*((Settings!$B$2)+1)), IF($E96="USD",$F96*((Settings!$B$2)+1),$F96*$E$9*((Settings!$B$2)+1))),””),"") ->  | R96: =IFERROR(IF($F96>0,$AA96*(1-Settings!$B$3),""),"") ->  | AA96: 0 | AC96: 0 | AD96: 0 | AE96: =IF($C96<>"",GetStockNumParam($C96,"h"),"") ->  | AF96: 0
Q97: =IFERROR(IF($F97>0,IF($B$6="Canada",IF($E97="CAD",$F97*((Settings!$B$2)+1),$F97*$E$9*((Settings!$B$2)+1)), IF($E97="USD",$F97*((Settings!$B$2)+1),$F97*$E$9*((Settings!$B$2)+1))),””),"") ->  | R97: =IFERROR(IF($F97>0,$AA97*(1-Settings!$B$3),""),"") ->  | AA97: 0 | AC97: 0 | AD97: 0 | AE97: =IF($C97<>"",GetStockNumParam($C97,"h"),"") ->  | AF97: 0
Q98: =IFERROR(IF($F98>0,IF($B$6="Canada",IF($E98="CAD",$F98*((Settings!$B$2)+1),$F98*$E$9*((Settings!$B$2)+1)), IF($E98="USD",$F98*((Settings!$B$2)+1),$F98*$E$9*((Settings!$B$2)+1))),””),"") ->  | R98: =IFERROR(IF($F98>0,$AA98*(1-Settings!$B$3),""),"") ->  | AA98: 0 | AC98: 0 | AD98: 0 | AE98: =IF($C98<>"",GetStockNumParam($C98,"h"),"") ->  | AF98: 0
Q99: =IFERROR(IF($F99>0,IF($B$6="Canada",IF($E99="CAD",$F99*((Settings!$B$2)+1),$F99*$E$9*((Settings!$B$2)+1)), IF($E99="USD",$F99*((Settings!$B$2)+1),$F99*$E$9*((Settings!$B$2)+1))),””),"") ->  | R99: =IFERROR(IF($F99>0,$AA99*(1-Settings!$B$3),""),"") ->  | AA99: 0 | AC99: 0 | AD99: 0 | AE99: =IF($C99<>"",GetStockNumParam($C99,"h"),"") ->  | AF99: 0
Q100: =IFERROR(IF($F100>0,IF($B$6="Canada",IF($E100="CAD",$F100*((Settings!$B$2)+1),$F100*$E$9*((Settings!$B$2)+1)), IF($E100="USD",$F100*((Settings!$B$2)+1),$F100*$E$9*((Settings!$B$2)+1))),””),"") ->  | R100: =IFERROR(IF($F100>0,$AA100*(1-Settings!$B$3),""),"") ->  | AA100: 0 | AC100: 0 | AD100: 0 | AE100: =IF($C100<>"",GetStockNumParam($C100,"h"),"") ->  | AF100: 0
Q101: =IFERROR(IF($F101>0,IF($B$6="Canada",IF($E101="CAD",$F101*((Settings!$B$2)+1),$F101*$E$9*((Settings!$B$2)+1)), IF($E101="USD",$F101*((Settings!$B$2)+1),$F101*$E$9*((Settings!$B$2)+1))),””),"") ->  | R101: =IFERROR(IF($F101>0,$AA101*(1-Settings!$B$3),""),"") ->  | AA101: 0 | AC101: 0 | AD101: 0 | AE101: =IF($C101<>"",GetStockNumParam($C101,"h"),"") ->  | AF101: 0
Q102: =IFERROR(IF($F102>0,IF($B$6="Canada",IF($E102="CAD",$F102*((Settings!$B$2)+1),$F102*$E$9*((Settings!$B$2)+1)), IF($E102="USD",$F102*((Settings!$B$2)+1),$F102*$E$9*((Settings!$B$2)+1))),””),"") ->  | R102: =IFERROR(IF($F102>0,$AA102*(1-Settings!$B$3),""),"") ->  | AA102: 0 | AC102: 0 | AD102: 0 | AE102: =IF($C102<>"",GetStockNumParam($C102,"h"),"") ->  | AF102: 0
Q103: =IFERROR(IF($F103>0,IF($B$6="Canada",IF($E103="CAD",$F103*((Settings!$B$2)+1),$F103*$E$9*((Settings!$B$2)+1)), IF($E103="USD",$F103*((Settings!$B$2)+1),$F103*$E$9*((Settings!$B$2)+1))),””),"") ->  | R103: =IFERROR(IF($F103>0,$AA103*(1-Settings!$B$3),""),"") ->  | AA103: 0 | AC103: 0 | AD103: 0 | AE103: =IF($C103<>"",GetStockNumParam($C103,"h"),"") ->  | AF103: 0
Q104: =IFERROR(IF($F104>0,IF($B$6="Canada",IF($E104="CAD",$F104*((Settings!$B$2)+1),$F104*$E$9*((Settings!$B$2)+1)), IF($E104="USD",$F104*((Settings!$B$2)+1),$F104*$E$9*((Settings!$B$2)+1))),””),"") ->  | R104: =IFERROR(IF($F104>0,$AA104*(1-Settings!$B$3),""),"") ->  | AA104: 0 | AC104: 0 | AD104: 0 | AE104: =IF($C104<>"",GetStockNumParam($C104,"h"),"") ->  | AF104: 0
Q105: =IFERROR(IF($F105>0,IF($B$6="Canada",IF($E105="CAD",$F105*((Settings!$B$2)+1),$F105*$E$9*((Settings!$B$2)+1)), IF($E105="USD",$F105*((Settings!$B$2)+1),$F105*$E$9*((Settings!$B$2)+1))),””),"") ->  | R105: =IFERROR(IF($F105>0,$AA105*(1-Settings!$B$3),""),"") ->  | AA105: 0 | AC105: 0 | AD105: 0 | AE105: =IF($C105<>"",GetStockNumParam($C105,"h"),"") ->  | AF105: 0
Q106: =IFERROR(IF($F106>0,IF($B$6="Canada",IF($E106="CAD",$F106*((Settings!$B$2)+1),$F106*$E$9*((Settings!$B$2)+1)), IF($E106="USD",$F106*((Settings!$B$2)+1),$F106*$E$9*((Settings!$B$2)+1))),””),"") ->  | R106: =IFERROR(IF($F106>0,$AA106*(1-Settings!$B$3),""),"") ->  | AA106: 0 | AC106: 0 | AD106: 0 | AE106: =IF($C106<>"",GetStockNumParam($C106,"h"),"") ->  | AF106: 0
Q107: =IFERROR(IF($F107>0,IF($B$6="Canada",IF($E107="CAD",$F107*((Settings!$B$2)+1),$F107*$E$9*((Settings!$B$2)+1)), IF($E107="USD",$F107*((Settings!$B$2)+1),$F107*$E$9*((Settings!$B$2)+1))),””),"") ->  | R107: =IFERROR(IF($F107>0,$AA107*(1-Settings!$B$3),""),"") ->  | AA107: 0 | AC107: 0 | AD107: 0 | AE107: =IF($C107<>"",GetStockNumParam($C107,"h"),"") ->  | AF107: 0
Q108: =IFERROR(IF($F108>0,IF($B$6="Canada",IF($E108="CAD",$F108*((Settings!$B$2)+1),$F108*$E$9*((Settings!$B$2)+1)), IF($E108="USD",$F108*((Settings!$B$2)+1),$F108*$E$9*((Settings!$B$2)+1))),””),"") ->  | R108: =IFERROR(IF($F108>0,$AA108*(1-Settings!$B$3),""),"") ->  | AA108: 0 | AC108: 0 | AD108: 0 | AE108: =IF($C108<>"",GetStockNumParam($C108,"h"),"") ->  | AF108: 0
Q109: =IFERROR(IF($F109>0,IF($B$6="Canada",IF($E109="CAD",$F109*((Settings!$B$2)+1),$F109*$E$9*((Settings!$B$2)+1)), IF($E109="USD",$F109*((Settings!$B$2)+1),$F109*$E$9*((Settings!$B$2)+1))),””),"") ->  | R109: =IFERROR(IF($F109>0,$AA109*(1-Settings!$B$3),""),"") ->  | AA109: 0 | AC109: 0 | AD109: 0 | AE109: =IF($C109<>"",GetStockNumParam($C109,"h"),"") ->  | AF109: 0
Q110: =IFERROR(IF($F110>0,IF($B$6="Canada",IF($E110="CAD",$F110*((Settings!$B$2)+1),$F110*$E$9*((Settings!$B$2)+1)), IF($E110="USD",$F110*((Settings!$B$2)+1),$F110*$E$9*((Settings!$B$2)+1))),””),"") ->  | R110: =IFERROR(IF($F110>0,$AA110*(1-Settings!$B$3),""),"") ->  | AA110: 0 | AC110: 0 | AD110: 0 | AE110: =IF($C110<>"",GetStockNumParam($C110,"h"),"") ->  | AF110: 0
Q111: =IFERROR(IF($F111>0,IF($B$6="Canada",IF($E111="CAD",$F111*((Settings!$B$2)+1),$F111*$E$9*((Settings!$B$2)+1)), IF($E111="USD",$F111*((Settings!$B$2)+1),$F111*$E$9*((Settings!$B$2)+1))),””),"") ->  | R111: =IFERROR(IF($F111>0,$AA111*(1-Settings!$B$3),""),"") ->  | AA111: 0 | AC111: 0 | AD111: 0 | AE111: =IF($C111<>"",GetStockNumParam($C111,"h"),"") ->  | AF111: 0
Q112: =IFERROR(IF($F112>0,IF($B$6="Canada",IF($E112="CAD",$F112*((Settings!$B$2)+1),$F112*$E$9*((Settings!$B$2)+1)), IF($E112="USD",$F112*((Settings!$B$2)+1),$F112*$E$9*((Settings!$B$2)+1))),””),"") ->  | R112: =IFERROR(IF($F112>0,$AA112*(1-Settings!$B$3),""),"") ->  | AA112: 0 | AC112: 0 | AD112: 0 | AE112: =IF($C112<>"",GetStockNumParam($C112,"h"),"") ->  | AF112: 0
Q113: =IFERROR(IF($F113>0,IF($B$6="Canada",IF($E113="CAD",$F113*((Settings!$B$2)+1),$F113*$E$9*((Settings!$B$2)+1)), IF($E113="USD",$F113*((Settings!$B$2)+1),$F113*$E$9*((Settings!$B$2)+1))),””),"") ->  | R113: =IFERROR(IF($F113>0,$AA113*(1-Settings!$B$3),""),"") ->  | AA113: 0 | AC113: 0 | AD113: 0 | AE113: =IF($C113<>"",GetStockNumParam($C113,"h"),"") ->  | AF113: 0
Q114: =IFERROR(IF($F114>0,IF($B$6="Canada",IF($E114="CAD",$F114*((Settings!$B$2)+1),$F114*$E$9*((Settings!$B$2)+1)), IF($E114="USD",$F114*((Settings!$B$2)+1),$F114*$E$9*((Settings!$B$2)+1))),””),"") ->  | R114: =IFERROR(IF($F114>0,$AA114*(1-Settings!$B$3),""),"") ->  | AA114: 0 | AC114: 0 | AD114: 0 | AE114: =IF($C114<>"",GetStockNumParam($C114,"h"),"") ->  | AF114: 0
Q115: =IFERROR(IF($F115>0,IF($B$6="Canada",IF($E115="CAD",$F115*((Settings!$B$2)+1),$F115*$E$9*((Settings!$B$2)+1)), IF($E115="USD",$F115*((Settings!$B$2)+1),$F115*$E$9*((Settings!$B$2)+1))),””),"") ->  | R115: =IFERROR(IF($F115>0,$AA115*(1-Settings!$B$3),""),"") ->  | AA115: 0 | AC115: 0 | AD115: 0 | AE115: =IF($C115<>"",GetStockNumParam($C115,"h"),"") ->  | AF115: 0
Q116: =IFERROR(IF($F116>0,IF($B$6="Canada",IF($E116="CAD",$F116*((Settings!$B$2)+1),$F116*$E$9*((Settings!$B$2)+1)), IF($E116="USD",$F116*((Settings!$B$2)+1),$F116*$E$9*((Settings!$B$2)+1))),””),"") ->  | R116: =IFERROR(IF($F116>0,$AA116*(1-Settings!$B$3),""),"") ->  | AA116: 0 | AC116: 0 | AD116: 0 | AE116: =IF($C116<>"",GetStockNumParam($C116,"h"),"") ->  | AF116: 0
Q117: =IFERROR(IF($F117>0,IF($B$6="Canada",IF($E117="CAD",$F117*((Settings!$B$2)+1),$F117*$E$9*((Settings!$B$2)+1)), IF($E117="USD",$F117*((Settings!$B$2)+1),$F117*$E$9*((Settings!$B$2)+1))),””),"") ->  | R117: =IFERROR(IF($F117>0,$AA117*(1-Settings!$B$3),""),"") ->  | AA117: 0 | AC117: 0 | AD117: 0 | AE117: =IF($C117<>"",GetStockNumParam($C117,"h"),"") ->  | AF117: 0
Q118: =IFERROR(IF($F118>0,IF($B$6="Canada",IF($E118="CAD",$F118*((Settings!$B$2)+1),$F118*$E$9*((Settings!$B$2)+1)), IF($E118="USD",$F118*((Settings!$B$2)+1),$F118*$E$9*((Settings!$B$2)+1))),””),"") ->  | R118: =IFERROR(IF($F118>0,$AA118*(1-Settings!$B$3),""),"") ->  | AA118: 0 | AC118: 0 | AD118: 0 | AE118: =IF($C118<>"",GetStockNumParam($C118,"h"),"") ->  | AF118: 0
Q119: =IFERROR(IF($F119>0,IF($B$6="Canada",IF($E119="CAD",$F119*((Settings!$B$2)+1),$F119*$E$9*((Settings!$B$2)+1)), IF($E119="USD",$F119*((Settings!$B$2)+1),$F119*$E$9*((Settings!$B$2)+1))),””),"") ->  | R119: =IFERROR(IF($F119>0,$AA119*(1-Settings!$B$3),""),"") ->  | AA119: 0 | AC119: 0 | AD119: 0 | AE119: =IF($C119<>"",GetStockNumParam($C119,"h"),"") ->  | AF119: 0
Q120: =IFERROR(IF($F120>0,IF($B$6="Canada",IF($E120="CAD",$F120*((Settings!$B$2)+1),$F120*$E$9*((Settings!$B$2)+1)), IF($E120="USD",$F120*((Settings!$B$2)+1),$F120*$E$9*((Settings!$B$2)+1))),””),"") ->  | R120: =IFERROR(IF($F120>0,$AA120*(1-Settings!$B$3),""),"") ->  | AA120: 0 | AC120: 0 | AD120: 0 | AE120: =IF($C120<>"",GetStockNumParam($C120,"h"),"") ->  | AF120: 0
Q121: =IFERROR(IF($F121>0,IF($B$6="Canada",IF($E121="CAD",$F121*((Settings!$B$2)+1),$F121*$E$9*((Settings!$B$2)+1)), IF($E121="USD",$F121*((Settings!$B$2)+1),$F121*$E$9*((Settings!$B$2)+1))),””),"") ->  | R121: =IFERROR(IF($F121>0,$AA121*(1-Settings!$B$3),""),"") ->  | AA121: 0 | AC121: 0 | AD121: 0 | AE121: =IF($C121<>"",GetStockNumParam($C121,"h"),"") ->  | AF121: 0
Q122: =IFERROR(IF($F122>0,IF($B$6="Canada",IF($E122="CAD",$F122*((Settings!$B$2)+1),$F122*$E$9*((Settings!$B$2)+1)), IF($E122="USD",$F122*((Settings!$B$2)+1),$F122*$E$9*((Settings!$B$2)+1))),””),"") ->  | R122: =IFERROR(IF($F122>0,$AA122*(1-Settings!$B$3),""),"") ->  | AA122: 0 | AC122: 0 | AD122: 0 | AE122: =IF($C122<>"",GetStockNumParam($C122,"h"),"") ->  | AF122: 0
Q123: =IFERROR(IF($F123>0,IF($B$6="Canada",IF($E123="CAD",$F123*((Settings!$B$2)+1),$F123*$E$9*((Settings!$B$2)+1)), IF($E123="USD",$F123*((Settings!$B$2)+1),$F123*$E$9*((Settings!$B$2)+1))),””),"") ->  | R123: =IFERROR(IF($F123>0,$AA123*(1-Settings!$B$3),""),"") ->  | AA123: 0 | AC123: 0 | AD123: 0 | AE123: =IF($C123<>"",GetStockNumParam($C123,"h"),"") ->  | AF123: 0
Q124: =IFERROR(IF($F124>0,IF($B$6="Canada",IF($E124="CAD",$F124*((Settings!$B$2)+1),$F124*$E$9*((Settings!$B$2)+1)), IF($E124="USD",$F124*((Settings!$B$2)+1),$F124*$E$9*((Settings!$B$2)+1))),””),"") ->  | R124: =IFERROR(IF($F124>0,$AA124*(1-Settings!$B$3),""),"") ->  | AA124: 0 | AC124: 0 | AD124: 0 | AE124: =IF($C124<>"",GetStockNumParam($C124,"h"),"") ->  | AF124: 0
Q125: =IFERROR(IF($F125>0,IF($B$6="Canada",IF($E125="CAD",$F125*((Settings!$B$2)+1),$F125*$E$9*((Settings!$B$2)+1)), IF($E125="USD",$F125*((Settings!$B$2)+1),$F125*$E$9*((Settings!$B$2)+1))),””),"") ->  | R125: =IFERROR(IF($F125>0,$AA125*(1-Settings!$B$3),""),"") ->  | AA125: 0 | AC125: 0 | AD125: 0 | AE125: =IF($C125<>"",GetStockNumParam($C125,"h"),"") ->  | AF125: 0
Q126: =IFERROR(IF($F126>0,IF($B$6="Canada",IF($E126="CAD",$F126*((Settings!$B$2)+1),$F126*$E$9*((Settings!$B$2)+1)), IF($E126="USD",$F126*((Settings!$B$2)+1),$F126*$E$9*((Settings!$B$2)+1))),””),"") ->  | R126: =IFERROR(IF($F126>0,$AA126*(1-Settings!$B$3),""),"") ->  | AA126: 0 | AC126: 0 | AD126: 0 | AE126: =IF($C126<>"",GetStockNumParam($C126,"h"),"") ->  | AF126: 0
Q127: =IFERROR(IF($F127>0,IF($B$6="Canada",IF($E127="CAD",$F127*((Settings!$B$2)+1),$F127*$E$9*((Settings!$B$2)+1)), IF($E127="USD",$F127*((Settings!$B$2)+1),$F127*$E$9*((Settings!$B$2)+1))),””),"") ->  | R127: =IFERROR(IF($F127>0,$AA127*(1-Settings!$B$3),""),"") ->  | AA127: 0 | AC127: 0 | AD127: 0 | AE127: =IF($C127<>"",GetStockNumParam($C127,"h"),"") ->  | AF127: 0
Q128: =IFERROR(IF($F128>0,IF($B$6="Canada",IF($E128="CAD",$F128*((Settings!$B$2)+1),$F128*$E$9*((Settings!$B$2)+1)), IF($E128="USD",$F128*((Settings!$B$2)+1),$F128*$E$9*((Settings!$B$2)+1))),””),"") ->  | R128: =IFERROR(IF($F128>0,$AA128*(1-Settings!$B$3),""),"") ->  | AA128: 0 | AC128: 0 | AD128: 0 | AE128: =IF($C128<>"",GetStockNumParam($C128,"h"),"") ->  | AF128: 0
Q129: =IFERROR(IF($F129>0,IF($B$6="Canada",IF($E129="CAD",$F129*((Settings!$B$2)+1),$F129*$E$9*((Settings!$B$2)+1)), IF($E129="USD",$F129*((Settings!$B$2)+1),$F129*$E$9*((Settings!$B$2)+1))),””),"") ->  | R129: =IFERROR(IF($F129>0,$AA129*(1-Settings!$B$3),""),"") ->  | AA129: 0 | AC129: 0 | AD129: 0 | AE129: =IF($C129<>"",GetStockNumParam($C129,"h"),"") ->  | AF129: 0
Q130: =IFERROR(IF($F130>0,IF($B$6="Canada",IF($E130="CAD",$F130*((Settings!$B$2)+1),$F130*$E$9*((Settings!$B$2)+1)), IF($E130="USD",$F130*((Settings!$B$2)+1),$F130*$E$9*((Settings!$B$2)+1))),””),"") ->  | R130: =IFERROR(IF($F130>0,$AA130*(1-Settings!$B$3),""),"") ->  | AA130: 0 | AC130: 0 | AD130: 0 | AE130: =IF($C130<>"",GetStockNumParam($C130,"h"),"") ->  | AF130: 0
Q131: =IFERROR(IF($F131>0,IF($B$6="Canada",IF($E131="CAD",$F131*((Settings!$B$2)+1),$F131*$E$9*((Settings!$B$2)+1)), IF($E131="USD",$F131*((Settings!$B$2)+1),$F131*$E$9*((Settings!$B$2)+1))),””),"") ->  | R131: =IFERROR(IF($F131>0,$AA131*(1-Settings!$B$3),""),"") ->  | AA131: 0 | AC131: 0 | AD131: 0 | AE131: =IF($C131<>"",GetStockNumParam($C131,"h"),"") ->  | AF131: 0
Q132: =IFERROR(IF($F132>0,IF($B$6="Canada",IF($E132="CAD",$F132*((Settings!$B$2)+1),$F132*$E$9*((Settings!$B$2)+1)), IF($E132="USD",$F132*((Settings!$B$2)+1),$F132*$E$9*((Settings!$B$2)+1))),””),"") ->  | R132: =IFERROR(IF($F132>0,$AA132*(1-Settings!$B$3),""),"") ->  | AA132: 0 | AC132: 0 | AD132: 0 | AE132: =IF($C132<>"",GetStockNumParam($C132,"h"),"") ->  | AF132: 0
Q133: =IFERROR(IF($F133>0,IF($B$6="Canada",IF($E133="CAD",$F133*((Settings!$B$2)+1),$F133*$E$9*((Settings!$B$2)+1)), IF($E133="USD",$F133*((Settings!$B$2)+1),$F133*$E$9*((Settings!$B$2)+1))),””),"") ->  | R133: =IFERROR(IF($F133>0,$AA133*(1-Settings!$B$3),""),"") ->  | AA133: 0 | AC133: 0 | AD133: 0 | AE133: =IF($C133<>"",GetStockNumParam($C133,"h"),"") ->  | AF133: 0
Q134: =IFERROR(IF($F134>0,IF($B$6="Canada",IF($E134="CAD",$F134*((Settings!$B$2)+1),$F134*$E$9*((Settings!$B$2)+1)), IF($E134="USD",$F134*((Settings!$B$2)+1),$F134*$E$9*((Settings!$B$2)+1))),””),"") ->  | R134: =IFERROR(IF($F134>0,$AA134*(1-Settings!$B$3),""),"") ->  | AA134: 0 | AC134: 0 | AD134: 0 | AE134: =IF($C134<>"",GetStockNumParam($C134,"h"),"") ->  | AF134: 0
Q135: =IFERROR(IF($F135>0,IF($B$6="Canada",IF($E135="CAD",$F135*((Settings!$B$2)+1),$F135*$E$9*((Settings!$B$2)+1)), IF($E135="USD",$F135*((Settings!$B$2)+1),$F135*$E$9*((Settings!$B$2)+1))),””),"") ->  | R135: =IFERROR(IF($F135>0,$AA135*(1-Settings!$B$3),""),"") ->  | AA135: 0 | AC135: 0 | AD135: 0 | AE135: =IF($C135<>"",GetStockNumParam($C135,"h"),"") ->  | AF135: 0
Q136: =IFERROR(IF($F136>0,IF($B$6="Canada",IF($E136="CAD",$F136*((Settings!$B$2)+1),$F136*$E$9*((Settings!$B$2)+1)), IF($E136="USD",$F136*((Settings!$B$2)+1),$F136*$E$9*((Settings!$B$2)+1))),””),"") ->  | R136: =IFERROR(IF($F136>0,$AA136*(1-Settings!$B$3),""),"") ->  | AA136: 0 | AC136: 0 | AD136: 0 | AE136: =IF($C136<>"",GetStockNumParam($C136,"h"),"") ->  | AF136: 0
Q137: =IFERROR(IF($F137>0,IF($B$6="Canada",IF($E137="CAD",$F137*((Settings!$B$2)+1),$F137*$E$9*((Settings!$B$2)+1)), IF($E137="USD",$F137*((Settings!$B$2)+1),$F137*$E$9*((Settings!$B$2)+1))),””),"") ->  | R137: =IFERROR(IF($F137>0,$AA137*(1-Settings!$B$3),""),"") ->  | AA137: 0 | AC137: 0 | AD137: 0 | AE137: =IF($C137<>"",GetStockNumParam($C137,"h"),"") ->  | AF137: 0
Q138: =IFERROR(IF($F138>0,IF($B$6="Canada",IF($E138="CAD",$F138*((Settings!$B$2)+1),$F138*$E$9*((Settings!$B$2)+1)), IF($E138="USD",$F138*((Settings!$B$2)+1),$F138*$E$9*((Settings!$B$2)+1))),””),"") ->  | R138: =IFERROR(IF($F138>0,$AA138*(1-Settings!$B$3),""),"") ->  | AA138: 0 | AC138: 0 | AD138: 0 | AE138: =IF($C138<>"",GetStockNumParam($C138,"h"),"") ->  | AF138: 0
N139: =IF(D139 > 0,IF(T139 > 0,"SOLD",D139*K139),"") ->  | O139: =IF(D139 > 0,IF(T139 > 0, Z139-I139, N139-I139),"") ->  | P139: =IF(D139 > 0,IF(O139=0,0,(O139/I139)),"") ->  | Q139: =IFERROR(IF($F139>0,IF($B$6="Canada",IF($E139="CAD",$F139*((Settings!$B$2)+1),$F139*$E$9*((Settings!$B$2)+1)), IF($E139="USD",$F139*((Settings!$B$2)+1),$F139*$E$9*((Settings!$B$2)+1))),””),"") ->  | R139: =IFERROR(IF($F139>0,$AA139*(1-Settings!$B$3),""),"") ->  | S139: =IF(F139>0,IF(K139>=Q139,"SELL",IF(K139<=R139,"STOP","HOLD")),"") ->  | X139: =IF(D139 > 0,IF(Z139 = 0,0,Z139-I139),"") ->  | Y139: =IF(D139 > 0,IF(Z139=0,0,(Z139/I139)-100%),"") ->  | Z139: =IF(T139 > 0,T139*D139-V139+W139,N139) ->  | AA139: 0 | AC139: 0 | AD139: =IF(N139 = "SOLD", Z139-I139,I139) -> 0 | AE139: =IF($C139<>"",GetStockNumParam($C139,"h"),"") ->  | AF139: 0
A140: =IF($C140="","",GetName($C140)) ->  | L140: =IF(J140 > 0,K140-J140,"") ->  | M140: =IF(J140 > 0,(L140/J140),"") ->  | Q140: =IFERROR(IF($F140>0,IF($B$6="Canada",IF($E140="CAD",$F140*((Settings!$B$2)+1),$F140*$E$9*((Settings!$B$2)+1)), IF($E140="USD",$F140*((Settings!$B$2)+1),$F140*$E$9*((Settings!$B$2)+1))),””),"") ->  | R140: =IFERROR(IF($F140>0,$AA140*(1-Settings!$B$3),""),"") ->  | AA140: =IF($B$6="Canada", IF($E140="CAD",IF($F140>$K140,$F140,$K140),IF(($F140*$E$9)>$K140,($F140*$E$9),$K140)), IF($E140="CAD",IF(($F140*$E$9)>$K140,($F140*$E$9),$K140),IF($F140>$K140,$F140,$K140))) -> 0 | AB140: =IF($B140="Simulate",0,IF(N140 = "SOLD", 0, N140)) ->  | AC140: =IF($B140="Simulate",0,IF(N140 = "SOLD",0,I140)) -> 0 | AD140: 0 | AE140: =IF($C140<>"",GetStockNumParam($C140,"h"),"") ->  | AF140: =IF($B140="Simulate",0,$I140) -> 0 | AG140: =IF($B140="Simulate",0,Z140) ->  | AH140: =IF($B140="Simulate","",$O140) -> 
Q141: =IFERROR(IF($F141>0,IF($B$6="Canada",IF($E141="CAD",$F141*((Settings!$B$2)+1),$F141*$E$9*((Settings!$B$2)+1)), IF($E141="USD",$F141*((Settings!$B$2)+1),$F141*$E$9*((Settings!$B$2)+1))),””),"") ->  | R141: =IFERROR(IF($F141>0,$AA141*(1-Settings!$B$3),""),"") ->  | AA141: 0 | AC141: 0 | AD141: 0 | AE141: =IF($C141<>"",GetStockNumParam($C141,"h"),"") ->  | AF141: 0
Q142: =IFERROR(IF($F142>0,IF($B$6="Canada",IF($E142="CAD",$F142*((Settings!$B$2)+1),$F142*$E$9*((Settings!$B$2)+1)), IF($E142="USD",$F142*((Settings!$B$2)+1),$F142*$E$9*((Settings!$B$2)+1))),””),"") ->  | R142: =IFERROR(IF($F142>0,$AA142*(1-Settings!$B$3),""),"") ->  | AA142: 0 | AC142: 0 | AD142: 0 | AE142: =IF($C142<>"",GetStockNumParam($C142,"h"),"") ->  | AF142: 0
Q143: =IFERROR(IF($F143>0,IF($B$6="Canada",IF($E143="CAD",$F143*((Settings!$B$2)+1),$F143*$E$9*((Settings!$B$2)+1)), IF($E143="USD",$F143*((Settings!$B$2)+1),$F143*$E$9*((Settings!$B$2)+1))),””),"") ->  | R143: =IFERROR(IF($F143>0,$AA143*(1-Settings!$B$3),""),"") ->  | AA143: 0 | AC143: 0 | AD143: 0 | AE143: =IF($C143<>"",GetStockNumParam($C143,"h"),"") ->  | AF143: 0
Q144: =IFERROR(IF($F144>0,IF($B$6="Canada",IF($E144="CAD",$F144*((Settings!$B$2)+1),$F144*$E$9*((Settings!$B$2)+1)), IF($E144="USD",$F144*((Settings!$B$2)+1),$F144*$E$9*((Settings!$B$2)+1))),””),"") ->  | R144: =IFERROR(IF($F144>0,$AA144*(1-Settings!$B$3),""),"") ->  | AA144: 0 | AC144: 0 | AD144: 0 | AE144: =IF($C144<>"",GetStockNumParam($C144,"h"),"") ->  | AF144: 0
Q145: =IFERROR(IF($F145>0,IF($B$6="Canada",IF($E145="CAD",$F145*((Settings!$B$2)+1),$F145*$E$9*((Settings!$B$2)+1)), IF($E145="USD",$F145*((Settings!$B$2)+1),$F145*$E$9*((Settings!$B$2)+1))),””),"") ->  | R145: =IFERROR(IF($F145>0,$AA145*(1-Settings!$B$3),""),"") ->  | AA145: 0 | AC145: 0 | AD145: 0 | AE145: =IF($C145<>"",GetStockNumParam($C145,"h"),"") ->  | AF145: 0
Q146: =IFERROR(IF($F146>0,IF($B$6="Canada",IF($E146="CAD",$F146*((Settings!$B$2)+1),$F146*$E$9*((Settings!$B$2)+1)), IF($E146="USD",$F146*((Settings!$B$2)+1),$F146*$E$9*((Settings!$B$2)+1))),””),"") ->  | R146: =IFERROR(IF($F146>0,$AA146*(1-Settings!$B$3),""),"") ->  | AA146: 0 | AC146: 0 | AD146: 0 | AE146: =IF($C146<>"",GetStockNumParam($C146,"h"),"") ->  | AF146: 0
Q147: =IFERROR(IF($F147>0,IF($B$6="Canada",IF($E147="CAD",$F147*((Settings!$B$2)+1),$F147*$E$9*((Settings!$B$2)+1)), IF($E147="USD",$F147*((Settings!$B$2)+1),$F147*$E$9*((Settings!$B$2)+1))),””),"") ->  | R147: =IFERROR(IF($F147>0,$AA147*(1-Settings!$B$3),""),"") ->  | AA147: 0 | AC147: 0 | AD147: 0 | AE147: =IF($C147<>"",GetStockNumParam($C147,"h"),"") ->  | AF147: 0
Q148: =IFERROR(IF($F148>0,IF($B$6="Canada",IF($E148="CAD",$F148*((Settings!$B$2)+1),$F148*$E$9*((Settings!$B$2)+1)), IF($E148="USD",$F148*((Settings!$B$2)+1),$F148*$E$9*((Settings!$B$2)+1))),””),"") ->  | R148: =IFERROR(IF($F148>0,$AA148*(1-Settings!$B$3),""),"") ->  | AA148: 0 | AC148: 0 | AD148: 0 | AE148: =IF($C148<>"",GetStockNumParam($C148,"h"),"") ->  | AF148: 0
Q149: =IFERROR(IF($F149>0,IF($B$6="Canada",IF($E149="CAD",$F149*((Settings!$B$2)+1),$F149*$E$9*((Settings!$B$2)+1)), IF($E149="USD",$F149*((Settings!$B$2)+1),$F149*$E$9*((Settings!$B$2)+1))),””),"") ->  | R149: =IFERROR(IF($F149>0,$AA149*(1-Settings!$B$3),""),"") ->  | AA149: 0 | AC149: 0 | AD149: 0 | AE149: =IF($C149<>"",GetStockNumParam($C149,"h"),"") ->  | AF149: 0
Q150: =IFERROR(IF($F150>0,IF($B$6="Canada",IF($E150="CAD",$F150*((Settings!$B$2)+1),$F150*$E$9*((Settings!$B$2)+1)), IF($E150="USD",$F150*((Settings!$B$2)+1),$F150*$E$9*((Settings!$B$2)+1))),””),"") ->  | R150: =IFERROR(IF($F150>0,$AA150*(1-Settings!$B$3),""),"") ->  | AA150: 0 | AC150: 0 | AD150: 0 | AE150: =IF($C150<>"",GetStockNumParam($C150,"h"),"") ->  | AF150: 0
Q151: =IFERROR(IF($F151>0,IF($B$6="Canada",IF($E151="CAD",$F151*((Settings!$B$2)+1),$F151*$E$9*((Settings!$B$2)+1)), IF($E151="USD",$F151*((Settings!$B$2)+1),$F151*$E$9*((Settings!$B$2)+1))),””),"") ->  | R151: =IFERROR(IF($F151>0,$AA151*(1-Settings!$B$3),""),"") ->  | AA151: 0 | AC151: 0 | AD151: 0 | AE151: =IF($C151<>"",GetStockNumParam($C151,"h"),"") ->  | AF151: 0
Q152: =IFERROR(IF($F152>0,IF($B$6="Canada",IF($E152="CAD",$F152*((Settings!$B$2)+1),$F152*$E$9*((Settings!$B$2)+1)), IF($E152="USD",$F152*((Settings!$B$2)+1),$F152*$E$9*((Settings!$B$2)+1))),””),"") ->  | R152: =IFERROR(IF($F152>0,$AA152*(1-Settings!$B$3),""),"") ->  | AA152: 0 | AC152: 0 | AD152: 0 | AE152: =IF($C152<>"",GetStockNumParam($C152,"h"),"") ->  | AF152: 0
Q153: =IFERROR(IF($F153>0,IF($B$6="Canada",IF($E153="CAD",$F153*((Settings!$B$2)+1),$F153*$E$9*((Settings!$B$2)+1)), IF($E153="USD",$F153*((Settings!$B$2)+1),$F153*$E$9*((Settings!$B$2)+1))),””),"") ->  | R153: =IFERROR(IF($F153>0,$AA153*(1-Settings!$B$3),""),"") ->  | AA153: 0 | AC153: 0 | AD153: 0 | AE153: =IF($C153<>"",GetStockNumParam($C153,"h"),"") ->  | AF153: 0
Q154: =IFERROR(IF($F154>0,IF($B$6="Canada",IF($E154="CAD",$F154*((Settings!$B$2)+1),$F154*$E$9*((Settings!$B$2)+1)), IF($E154="USD",$F154*((Settings!$B$2)+1),$F154*$E$9*((Settings!$B$2)+1))),””),"") ->  | R154: =IFERROR(IF($F154>0,$AA154*(1-Settings!$B$3),""),"") ->  | AA154: 0 | AC154: 0 | AD154: 0 | AE154: =IF($C154<>"",GetStockNumParam($C154,"h"),"") ->  | AF154: 0
Q155: =IFERROR(IF($F155>0,IF($B$6="Canada",IF($E155="CAD",$F155*((Settings!$B$2)+1),$F155*$E$9*((Settings!$B$2)+1)), IF($E155="USD",$F155*((Settings!$B$2)+1),$F155*$E$9*((Settings!$B$2)+1))),””),"") ->  | R155: =IFERROR(IF($F155>0,$AA155*(1-Settings!$B$3),""),"") ->  | AA155: 0 | AC155: 0 | AD155: 0 | AE155: =IF($C155<>"",GetStockNumParam($C155,"h"),"") ->  | AF155: 0
Q156: =IFERROR(IF($F156>0,IF($B$6="Canada",IF($E156="CAD",$F156*((Settings!$B$2)+1),$F156*$E$9*((Settings!$B$2)+1)), IF($E156="USD",$F156*((Settings!$B$2)+1),$F156*$E$9*((Settings!$B$2)+1))),””),"") ->  | R156: =IFERROR(IF($F156>0,$AA156*(1-Settings!$B$3),""),"") ->  | AA156: 0 | AC156: 0 | AD156: 0 | AE156: =IF($C156<>"",GetStockNumParam($C156,"h"),"") ->  | AF156: 0
Q157: =IFERROR(IF($F157>0,IF($B$6="Canada",IF($E157="CAD",$F157*((Settings!$B$2)+1),$F157*$E$9*((Settings!$B$2)+1)), IF($E157="USD",$F157*((Settings!$B$2)+1),$F157*$E$9*((Settings!$B$2)+1))),””),"") ->  | R157: =IFERROR(IF($F157>0,$AA157*(1-Settings!$B$3),""),"") ->  | AA157: 0 | AC157: 0 | AD157: 0 | AE157: =IF($C157<>"",GetStockNumParam($C157,"h"),"") ->  | AF157: 0
Q158: =IFERROR(IF($F158>0,IF($B$6="Canada",IF($E158="CAD",$F158*((Settings!$B$2)+1),$F158*$E$9*((Settings!$B$2)+1)), IF($E158="USD",$F158*((Settings!$B$2)+1),$F158*$E$9*((Settings!$B$2)+1))),””),"") ->  | R158: =IFERROR(IF($F158>0,$AA158*(1-Settings!$B$3),""),"") ->  | AA158: 0 | AC158: 0 | AD158: 0 | AE158: =IF($C158<>"",GetStockNumParam($C158,"h"),"") ->  | AF158: 0
Q159: =IFERROR(IF($F159>0,IF($B$6="Canada",IF($E159="CAD",$F159*((Settings!$B$2)+1),$F159*$E$9*((Settings!$B$2)+1)), IF($E159="USD",$F159*((Settings!$B$2)+1),$F159*$E$9*((Settings!$B$2)+1))),””),"") ->  | R159: =IFERROR(IF($F159>0,$AA159*(1-Settings!$B$3),""),"") ->  | AA159: 0 | AC159: 0 | AD159: 0 | AE159: =IF($C159<>"",GetStockNumParam($C159,"h"),"") ->  | AF159: 0
Q160: =IFERROR(IF($F160>0,IF($B$6="Canada",IF($E160="CAD",$F160*((Settings!$B$2)+1),$F160*$E$9*((Settings!$B$2)+1)), IF($E160="USD",$F160*((Settings!$B$2)+1),$F160*$E$9*((Settings!$B$2)+1))),””),"") ->  | R160: =IFERROR(IF($F160>0,$AA160*(1-Settings!$B$3),""),"") ->  | AA160: 0 | AC160: 0 | AD160: 0 | AE160: =IF($C160<>"",GetStockNumParam($C160,"h"),"") ->  | AF160: 0
Q161: =IFERROR(IF($F161>0,IF($B$6="Canada",IF($E161="CAD",$F161*((Settings!$B$2)+1),$F161*$E$9*((Settings!$B$2)+1)), IF($E161="USD",$F161*((Settings!$B$2)+1),$F161*$E$9*((Settings!$B$2)+1))),””),"") ->  | R161: =IFERROR(IF($F161>0,$AA161*(1-Settings!$B$3),""),"") ->  | AA161: 0 | AC161: 0 | AD161: 0 | AE161: =IF($C161<>"",GetStockNumParam($C161,"h"),"") ->  | AF161: 0
Q162: =IFERROR(IF($F162>0,IF($B$6="Canada",IF($E162="CAD",$F162*((Settings!$B$2)+1),$F162*$E$9*((Settings!$B$2)+1)), IF($E162="USD",$F162*((Settings!$B$2)+1),$F162*$E$9*((Settings!$B$2)+1))),””),"") ->  | R162: =IFERROR(IF($F162>0,$AA162*(1-Settings!$B$3),""),"") ->  | AA162: 0 | AC162: 0 | AD162: 0 | AE162: =IF($C162<>"",GetStockNumParam($C162,"h"),"") ->  | AF162: 0
Q163: =IFERROR(IF($F163>0,IF($B$6="Canada",IF($E163="CAD",$F163*((Settings!$B$2)+1),$F163*$E$9*((Settings!$B$2)+1)), IF($E163="USD",$F163*((Settings!$B$2)+1),$F163*$E$9*((Settings!$B$2)+1))),””),"") ->  | R163: =IFERROR(IF($F163>0,$AA163*(1-Settings!$B$3),""),"") ->  | AA163: 0 | AC163: 0 | AD163: 0 | AE163: =IF($C163<>"",GetStockNumParam($C163,"h"),"") ->  | AF163: 0
Q164: =IFERROR(IF($F164>0,IF($B$6="Canada",IF($E164="CAD",$F164*((Settings!$B$2)+1),$F164*$E$9*((Settings!$B$2)+1)), IF($E164="USD",$F164*((Settings!$B$2)+1),$F164*$E$9*((Settings!$B$2)+1))),””),"") ->  | R164: =IFERROR(IF($F164>0,$AA164*(1-Settings!$B$3),""),"") ->  | AA164: 0 | AC164: 0 | AD164: 0 | AE164: =IF($C164<>"",GetStockNumParam($C164,"h"),"") ->  | AF164: 0
Q165: =IFERROR(IF($F165>0,IF($B$6="Canada",IF($E165="CAD",$F165*((Settings!$B$2)+1),$F165*$E$9*((Settings!$B$2)+1)), IF($E165="USD",$F165*((Settings!$B$2)+1),$F165*$E$9*((Settings!$B$2)+1))),””),"") ->  | R165: =IFERROR(IF($F165>0,$AA165*(1-Settings!$B$3),""),"") ->  | AA165: 0 | AC165: 0 | AD165: 0 | AE165: =IF($C165<>"",GetStockNumParam($C165,"h"),"") ->  | AF165: 0
Q166: =IFERROR(IF($F166>0,IF($B$6="Canada",IF($E166="CAD",$F166*((Settings!$B$2)+1),$F166*$E$9*((Settings!$B$2)+1)), IF($E166="USD",$F166*((Settings!$B$2)+1),$F166*$E$9*((Settings!$B$2)+1))),””),"") ->  | R166: =IFERROR(IF($F166>0,$AA166*(1-Settings!$B$3),""),"") ->  | AA166: 0 | AC166: 0 | AD166: 0 | AE166: =IF($C166<>"",GetStockNumParam($C166,"h"),"") ->  | AF166: 0
Q167: =IFERROR(IF($F167>0,IF($B$6="Canada",IF($E167="CAD",$F167*((Settings!$B$2)+1),$F167*$E$9*((Settings!$B$2)+1)), IF($E167="USD",$F167*((Settings!$B$2)+1),$F167*$E$9*((Settings!$B$2)+1))),””),"") ->  | R167: =IFERROR(IF($F167>0,$AA167*(1-Settings!$B$3),""),"") ->  | AA167: 0 | AC167: 0 | AD167: 0 | AE167: =IF($C167<>"",GetStockNumParam($C167,"h"),"") ->  | AF167: 0
Q168: =IFERROR(IF($F168>0,IF($B$6="Canada",IF($E168="CAD",$F168*((Settings!$B$2)+1),$F168*$E$9*((Settings!$B$2)+1)), IF($E168="USD",$F168*((Settings!$B$2)+1),$F168*$E$9*((Settings!$B$2)+1))),””),"") ->  | R168: =IFERROR(IF($F168>0,$AA168*(1-Settings!$B$3),""),"") ->  | AA168: 0 | AC168: 0 | AD168: 0 | AE168: =IF($C168<>"",GetStockNumParam($C168,"h"),"") ->  | AF168: 0
Q169: =IFERROR(IF($F169>0,IF($B$6="Canada",IF($E169="CAD",$F169*((Settings!$B$2)+1),$F169*$E$9*((Settings!$B$2)+1)), IF($E169="USD",$F169*((Settings!$B$2)+1),$F169*$E$9*((Settings!$B$2)+1))),””),"") ->  | R169: =IFERROR(IF($F169>0,$AA169*(1-Settings!$B$3),""),"") ->  | AA169: 0 | AC169: 0 | AD169: 0 | AE169: =IF($C169<>"",GetStockNumParam($C169,"h"),"") ->  | AF169: 0
Q170: =IFERROR(IF($F170>0,IF($B$6="Canada",IF($E170="CAD",$F170*((Settings!$B$2)+1),$F170*$E$9*((Settings!$B$2)+1)), IF($E170="USD",$F170*((Settings!$B$2)+1),$F170*$E$9*((Settings!$B$2)+1))),””),"") ->  | R170: =IFERROR(IF($F170>0,$AA170*(1-Settings!$B$3),""),"") ->  | AA170: 0 | AC170: 0 | AD170: 0 | AE170: =IF($C170<>"",GetStockNumParam($C170,"h"),"") ->  | AF170: 0
Q171: =IFERROR(IF($F171>0,IF($B$6="Canada",IF($E171="CAD",$F171*((Settings!$B$2)+1),$F171*$E$9*((Settings!$B$2)+1)), IF($E171="USD",$F171*((Settings!$B$2)+1),$F171*$E$9*((Settings!$B$2)+1))),””),"") ->  | R171: =IFERROR(IF($F171>0,$AA171*(1-Settings!$B$3),""),"") ->  | AA171: 0 | AC171: 0 | AD171: 0 | AE171: =IF($C171<>"",GetStockNumParam($C171,"h"),"") ->  | AF171: 0
Q172: =IFERROR(IF($F172>0,IF($B$6="Canada",IF($E172="CAD",$F172*((Settings!$B$2)+1),$F172*$E$9*((Settings!$B$2)+1)), IF($E172="USD",$F172*((Settings!$B$2)+1),$F172*$E$9*((Settings!$B$2)+1))),””),"") ->  | R172: =IFERROR(IF($F172>0,$AA172*(1-Settings!$B$3),""),"") ->  | AA172: 0 | AC172: 0 | AD172: 0 | AE172: =IF($C172<>"",GetStockNumParam($C172,"h"),"") ->  | AF172: 0
Q173: =IFERROR(IF($F173>0,IF($B$6="Canada",IF($E173="CAD",$F173*((Settings!$B$2)+1),$F173*$E$9*((Settings!$B$2)+1)), IF($E173="USD",$F173*((Settings!$B$2)+1),$F173*$E$9*((Settings!$B$2)+1))),””),"") ->  | R173: =IFERROR(IF($F173>0,$AA173*(1-Settings!$B$3),""),"") ->  | AA173: 0 | AC173: 0 | AD173: 0 | AE173: =IF($C173<>"",GetStockNumParam($C173,"h"),"") ->  | AF173: 0
Q174: =IFERROR(IF($F174>0,IF($B$6="Canada",IF($E174="CAD",$F174*((Settings!$B$2)+1),$F174*$E$9*((Settings!$B$2)+1)), IF($E174="USD",$F174*((Settings!$B$2)+1),$F174*$E$9*((Settings!$B$2)+1))),””),"") ->  | R174: =IFERROR(IF($F174>0,$AA174*(1-Settings!$B$3),""),"") ->  | AA174: 0 | AC174: 0 | AD174: 0 | AE174: =IF($C174<>"",GetStockNumParam($C174,"h"),"") ->  | AF174: 0
Q175: =IFERROR(IF($F175>0,IF($B$6="Canada",IF($E175="CAD",$F175*((Settings!$B$2)+1),$F175*$E$9*((Settings!$B$2)+1)), IF($E175="USD",$F175*((Settings!$B$2)+1),$F175*$E$9*((Settings!$B$2)+1))),””),"") ->  | R175: =IFERROR(IF($F175>0,$AA175*(1-Settings!$B$3),""),"") ->  | AA175: 0 | AC175: 0 | AD175: 0 | AE175: =IF($C175<>"",GetStockNumParam($C175,"h"),"") ->  | AF175: 0
Q176: =IFERROR(IF($F176>0,IF($B$6="Canada",IF($E176="CAD",$F176*((Settings!$B$2)+1),$F176*$E$9*((Settings!$B$2)+1)), IF($E176="USD",$F176*((Settings!$B$2)+1),$F176*$E$9*((Settings!$B$2)+1))),””),"") ->  | R176: =IFERROR(IF($F176>0,$AA176*(1-Settings!$B$3),""),"") ->  | AA176: 0 | AC176: 0 | AD176: 0 | AE176: =IF($C176<>"",GetStockNumParam($C176,"h"),"") ->  | AF176: 0
Q177: =IFERROR(IF($F177>0,IF($B$6="Canada",IF($E177="CAD",$F177*((Settings!$B$2)+1),$F177*$E$9*((Settings!$B$2)+1)), IF($E177="USD",$F177*((Settings!$B$2)+1),$F177*$E$9*((Settings!$B$2)+1))),””),"") ->  | R177: =IFERROR(IF($F177>0,$AA177*(1-Settings!$B$3),""),"") ->  | AA177: 0 | AC177: 0 | AD177: 0 | AE177: =IF($C177<>"",GetStockNumParam($C177,"h"),"") ->  | AF177: 0
Q178: =IFERROR(IF($F178>0,IF($B$6="Canada",IF($E178="CAD",$F178*((Settings!$B$2)+1),$F178*$E$9*((Settings!$B$2)+1)), IF($E178="USD",$F178*((Settings!$B$2)+1),$F178*$E$9*((Settings!$B$2)+1))),””),"") ->  | R178: =IFERROR(IF($F178>0,$AA178*(1-Settings!$B$3),""),"") ->  | AA178: 0 | AC178: 0 | AD178: 0 | AE178: =IF($C178<>"",GetStockNumParam($C178,"h"),"") ->  | AF178: 0
Q179: =IFERROR(IF($F179>0,IF($B$6="Canada",IF($E179="CAD",$F179*((Settings!$B$2)+1),$F179*$E$9*((Settings!$B$2)+1)), IF($E179="USD",$F179*((Settings!$B$2)+1),$F179*$E$9*((Settings!$B$2)+1))),””),"") ->  | R179: =IFERROR(IF($F179>0,$AA179*(1-Settings!$B$3),""),"") ->  | AA179: 0 | AC179: 0 | AD179: 0 | AE179: =IF($C179<>"",GetStockNumParam($C179,"h"),"") ->  | AF179: 0
Q180: =IFERROR(IF($F180>0,IF($B$6="Canada",IF($E180="CAD",$F180*((Settings!$B$2)+1),$F180*$E$9*((Settings!$B$2)+1)), IF($E180="USD",$F180*((Settings!$B$2)+1),$F180*$E$9*((Settings!$B$2)+1))),””),"") ->  | R180: =IFERROR(IF($F180>0,$AA180*(1-Settings!$B$3),""),"") ->  | AA180: 0 | AC180: 0 | AD180: 0 | AE180: =IF($C180<>"",GetStockNumParam($C180,"h"),"") ->  | AF180: 0
Q181: =IFERROR(IF($F181>0,IF($B$6="Canada",IF($E181="CAD",$F181*((Settings!$B$2)+1),$F181*$E$9*((Settings!$B$2)+1)), IF($E181="USD",$F181*((Settings!$B$2)+1),$F181*$E$9*((Settings!$B$2)+1))),””),"") ->  | R181: =IFERROR(IF($F181>0,$AA181*(1-Settings!$B$3),""),"") ->  | AA181: 0 | AC181: 0 | AD181: 0 | AE181: =IF($C181<>"",GetStockNumParam($C181,"h"),"") ->  | AF181: 0
Q182: =IFERROR(IF($F182>0,IF($B$6="Canada",IF($E182="CAD",$F182*((Settings!$B$2)+1),$F182*$E$9*((Settings!$B$2)+1)), IF($E182="USD",$F182*((Settings!$B$2)+1),$F182*$E$9*((Settings!$B$2)+1))),””),"") ->  | R182: =IFERROR(IF($F182>0,$AA182*(1-Settings!$B$3),""),"") ->  | AA182: 0 | AC182: 0 | AD182: 0 | AE182: =IF($C182<>"",GetStockNumParam($C182,"h"),"") ->  | AF182: 0
Q183: =IFERROR(IF($F183>0,IF($B$6="Canada",IF($E183="CAD",$F183*((Settings!$B$2)+1),$F183*$E$9*((Settings!$B$2)+1)), IF($E183="USD",$F183*((Settings!$B$2)+1),$F183*$E$9*((Settings!$B$2)+1))),””),"") ->  | R183: =IFERROR(IF($F183>0,$AA183*(1-Settings!$B$3),""),"") ->  | AA183: 0 | AC183: 0 | AD183: 0 | AE183: =IF($C183<>"",GetStockNumParam($C183,"h"),"") ->  | AF183: 0
Q184: =IFERROR(IF($F184>0,IF($B$6="Canada",IF($E184="CAD",$F184*((Settings!$B$2)+1),$F184*$E$9*((Settings!$B$2)+1)), IF($E184="USD",$F184*((Settings!$B$2)+1),$F184*$E$9*((Settings!$B$2)+1))),””),"") ->  | R184: =IFERROR(IF($F184>0,$AA184*(1-Settings!$B$3),""),"") ->  | AA184: 0 | AC184: 0 | AD184: 0 | AE184: =IF($C184<>"",GetStockNumParam($C184,"h"),"") ->  | AF184: 0
Q185: =IFERROR(IF($F185>0,IF($B$6="Canada",IF($E185="CAD",$F185*((Settings!$B$2)+1),$F185*$E$9*((Settings!$B$2)+1)), IF($E185="USD",$F185*((Settings!$B$2)+1),$F185*$E$9*((Settings!$B$2)+1))),””),"") ->  | R185: =IFERROR(IF($F185>0,$AA185*(1-Settings!$B$3),""),"") ->  | AA185: 0 | AC185: 0 | AD185: 0 | AE185: =IF($C185<>"",GetStockNumParam($C185,"h"),"") ->  | AF185: 0
Q186: =IFERROR(IF($F186>0,IF($B$6="Canada",IF($E186="CAD",$F186*((Settings!$B$2)+1),$F186*$E$9*((Settings!$B$2)+1)), IF($E186="USD",$F186*((Settings!$B$2)+1),$F186*$E$9*((Settings!$B$2)+1))),””),"") ->  | R186: =IFERROR(IF($F186>0,$AA186*(1-Settings!$B$3),""),"") ->  | AA186: 0 | AC186: 0 | AD186: 0 | AE186: =IF($C186<>"",GetStockNumParam($C186,"h"),"") ->  | AF186: 0
Q187: =IFERROR(IF($F187>0,IF($B$6="Canada",IF($E187="CAD",$F187*((Settings!$B$2)+1),$F187*$E$9*((Settings!$B$2)+1)), IF($E187="USD",$F187*((Settings!$B$2)+1),$F187*$E$9*((Settings!$B$2)+1))),””),"") ->  | R187: =IFERROR(IF($F187>0,$AA187*(1-Settings!$B$3),""),"") ->  | AA187: 0 | AC187: 0 | AD187: 0 | AE187: =IF($C187<>"",GetStockNumParam($C187,"h"),"") ->  | AF187: 0
Q188: =IFERROR(IF($F188>0,IF($B$6="Canada",IF($E188="CAD",$F188*((Settings!$B$2)+1),$F188*$E$9*((Settings!$B$2)+1)), IF($E188="USD",$F188*((Settings!$B$2)+1),$F188*$E$9*((Settings!$B$2)+1))),””),"") ->  | R188: =IFERROR(IF($F188>0,$AA188*(1-Settings!$B$3),""),"") ->  | AA188: 0 | AC188: 0 | AD188: 0 | AE188: =IF($C188<>"",GetStockNumParam($C188,"h"),"") ->  | AF188: 0
Q189: =IFERROR(IF($F189>0,IF($B$6="Canada",IF($E189="CAD",$F189*((Settings!$B$2)+1),$F189*$E$9*((Settings!$B$2)+1)), IF($E189="USD",$F189*((Settings!$B$2)+1),$F189*$E$9*((Settings!$B$2)+1))),””),"") ->  | R189: =IFERROR(IF($F189>0,$AA189*(1-Settings!$B$3),""),"") ->  | AA189: 0 | AC189: 0 | AD189: 0 | AE189: =IF($C189<>"",GetStockNumParam($C189,"h"),"") ->  | AF189: 0
Q190: =IFERROR(IF($F190>0,IF($B$6="Canada",IF($E190="CAD",$F190*((Settings!$B$2)+1),$F190*$E$9*((Settings!$B$2)+1)), IF($E190="USD",$F190*((Settings!$B$2)+1),$F190*$E$9*((Settings!$B$2)+1))),””),"") ->  | R190: =IFERROR(IF($F190>0,$AA190*(1-Settings!$B$3),""),"") ->  | AA190: 0 | AC190: 0 | AD190: 0 | AE190: =IF($C190<>"",GetStockNumParam($C190,"h"),"") ->  | AF190: 0
Q191: =IFERROR(IF($F191>0,IF($B$6="Canada",IF($E191="CAD",$F191*((Settings!$B$2)+1),$F191*$E$9*((Settings!$B$2)+1)), IF($E191="USD",$F191*((Settings!$B$2)+1),$F191*$E$9*((Settings!$B$2)+1))),””),"") ->  | R191: =IFERROR(IF($F191>0,$AA191*(1-Settings!$B$3),""),"") ->  | AA191: 0 | AC191: 0 | AD191: 0 | AE191: =IF($C191<>"",GetStockNumParam($C191,"h"),"") ->  | AF191: 0
Q192: =IFERROR(IF($F192>0,IF($B$6="Canada",IF($E192="CAD",$F192*((Settings!$B$2)+1),$F192*$E$9*((Settings!$B$2)+1)), IF($E192="USD",$F192*((Settings!$B$2)+1),$F192*$E$9*((Settings!$B$2)+1))),””),"") ->  | R192: =IFERROR(IF($F192>0,$AA192*(1-Settings!$B$3),""),"") ->  | AA192: 0 | AC192: 0 | AD192: 0 | AE192: =IF($C192<>"",GetStockNumParam($C192,"h"),"") ->  | AF192: 0
Q193: =IFERROR(IF($F193>0,IF($B$6="Canada",IF($E193="CAD",$F193*((Settings!$B$2)+1),$F193*$E$9*((Settings!$B$2)+1)), IF($E193="USD",$F193*((Settings!$B$2)+1),$F193*$E$9*((Settings!$B$2)+1))),””),"") ->  | R193: =IFERROR(IF($F193>0,$AA193*(1-Settings!$B$3),""),"") ->  | AA193: 0 | AC193: 0 | AD193: 0 | AE193: =IF($C193<>"",GetStockNumParam($C193,"h"),"") ->  | AF193: 0
Q194: =IFERROR(IF($F194>0,IF($B$6="Canada",IF($E194="CAD",$F194*((Settings!$B$2)+1),$F194*$E$9*((Settings!$B$2)+1)), IF($E194="USD",$F194*((Settings!$B$2)+1),$F194*$E$9*((Settings!$B$2)+1))),””),"") ->  | R194: =IFERROR(IF($F194>0,$AA194*(1-Settings!$B$3),""),"") ->  | AA194: 0 | AC194: 0 | AD194: 0 | AE194: =IF($C194<>"",GetStockNumParam($C194,"h"),"") ->  | AF194: 0
Q195: =IFERROR(IF($F195>0,IF($B$6="Canada",IF($E195="CAD",$F195*((Settings!$B$2)+1),$F195*$E$9*((Settings!$B$2)+1)), IF($E195="USD",$F195*((Settings!$B$2)+1),$F195*$E$9*((Settings!$B$2)+1))),””),"") ->  | R195: =IFERROR(IF($F195>0,$AA195*(1-Settings!$B$3),""),"") ->  | AA195: 0 | AC195: 0 | AD195: 0 | AE195: =IF($C195<>"",GetStockNumParam($C195,"h"),"") ->  | AF195: 0
Q196: =IFERROR(IF($F196>0,IF($B$6="Canada",IF($E196="CAD",$F196*((Settings!$B$2)+1),$F196*$E$9*((Settings!$B$2)+1)), IF($E196="USD",$F196*((Settings!$B$2)+1),$F196*$E$9*((Settings!$B$2)+1))),””),"") ->  | R196: =IFERROR(IF($F196>0,$AA196*(1-Settings!$B$3),""),"") ->  | AA196: 0 | AC196: 0 | AD196: 0 | AE196: =IF($C196<>"",GetStockNumParam($C196,"h"),"") ->  | AF196: 0
Q197: =IFERROR(IF($F197>0,IF($B$6="Canada",IF($E197="CAD",$F197*((Settings!$B$2)+1),$F197*$E$9*((Settings!$B$2)+1)), IF($E197="USD",$F197*((Settings!$B$2)+1),$F197*$E$9*((Settings!$B$2)+1))),””),"") ->  | R197: =IFERROR(IF($F197>0,$AA197*(1-Settings!$B$3),""),"") ->  | AA197: 0 | AC197: 0 | AD197: 0 | AE197: =IF($C197<>"",GetStockNumParam($C197,"h"),"") ->  | AF197: 0
Q198: =IFERROR(IF($F198>0,IF($B$6="Canada",IF($E198="CAD",$F198*((Settings!$B$2)+1),$F198*$E$9*((Settings!$B$2)+1)), IF($E198="USD",$F198*((Settings!$B$2)+1),$F198*$E$9*((Settings!$B$2)+1))),””),"") ->  | R198: =IFERROR(IF($F198>0,$AA198*(1-Settings!$B$3),""),"") ->  | AA198: 0 | AC198: 0 | AD198: 0 | AE198: =IF($C198<>"",GetStockNumParam($C198,"h"),"") ->  | AF198: 0
Q199: =IFERROR(IF($F199>0,IF($B$6="Canada",IF($E199="CAD",$F199*((Settings!$B$2)+1),$F199*$E$9*((Settings!$B$2)+1)), IF($E199="USD",$F199*((Settings!$B$2)+1),$F199*$E$9*((Settings!$B$2)+1))),””),"") ->  | R199: =IFERROR(IF($F199>0,$AA199*(1-Settings!$B$3),""),"") ->  | AA199: 0 | AC199: 0 | AD199: 0 | AE199: =IF($C199<>"",GetStockNumParam($C199,"h"),"") ->  | AF199: 0
Q200: =IFERROR(IF($F200>0,IF($B$6="Canada",IF($E200="CAD",$F200*((Settings!$B$2)+1),$F200*$E$9*((Settings!$B$2)+1)), IF($E200="USD",$F200*((Settings!$B$2)+1),$F200*$E$9*((Settings!$B$2)+1))),””),"") ->  | R200: =IFERROR(IF($F200>0,$AA200*(1-Settings!$B$3),""),"") ->  | AA200: 0 | AC200: 0 | AD200: 0 | AE200: =IF($C200<>"",GetStockNumParam($C200,"h"),"") ->  | AF200: 0
... 311 more rows

Sheet Charts
A1: Investment Name | B1: Stock Symbol | C1: Display Yahoo Finance Charts in WebPage | H1: StockCharts | I1: Yahoo Finance Quote Info
A2: =GetName($B2) -> Walt Disney Company (The) Commo | B2: =IF(Portfolio!C11=0,"",Portfolio!C11) -> DIS | C2: =IF($B2<>"",HYPERLINK("http://ichart.finance.yahoo.com/c/3m/"&$B2&"?1234","3m"),"") -> 3m | D2: =IF($B2<>"",HYPERLINK("http://ichart.finance.yahoo.com/c/6m/"&$B2&"?1234","6m"),"") -> 6m | E2: =IF($B2<>"",HYPERLINK("http://ichart.finance.yahoo.com/c/1y/"&$B2&"?1234","1y"),"") -> 1y | F2: =IF($B2<>"",HYPERLINK("http://ichart.finance.yahoo.com/c/2y/"&$B2&"?1234","2y"),"") -> 2y | G2: =IF($B2<>"",HYPERLINK("http://ichart.finance.yahoo.com/c/5y/"&$B2&"?1234","5y"),"") -> 5y | H2: =IF($B2<>"",HYPERLINK("http://stockcharts.com/h-sc/ui?s="&$B2,"6m"),"") -> 6m | I2: =IF($B2<>"",HYPERLINK("http://finance.yahoo.com/q?s="&$B2&"&ql=0", "News"),"") -> News | J2: =IF($B2<>"",HYPERLINK("http://finance.yahoo.com/q/ks?s="&$B2&"+Key+Statistics","Key Stats"),"") -> Key Stats
A3: =GetName($B3) -> iShares Nasdaq Biotechnology In | B3: =IF(Portfolio!C12=0,"",Portfolio!C12) -> IBB | C3: =IF($B3<>"",HYPERLINK("http://ichart.finance.yahoo.com/c/3m/"&$B3&"?1234","3m"),"") -> 3m | D3: =IF($B3<>"",HYPERLINK("http://ichart.finance.yahoo.com/c/6m/"&$B3&"?1234","6m"),"") -> 6m | E3: =IF($B3<>"",HYPERLINK("http://ichart.finance.yahoo.com/c/1y/"&$B3&"?1234","1y"),"") -> 1y | F3: =IF($B3<>"",HYPERLINK("http://ichart.finance.yahoo.com/c/2y/"&$B3&"?1234","2y"),"") -> 2y | G3: =IF($B3<>"",HYPERLINK("http://ichart.finance.yahoo.com/c/5y/"&$B3&"?1234","5y"),"") -> 5y | H3: =IF($B3<>"",HYPERLINK("http://stockcharts.com/h-sc/ui?s="&$B3,"6m"),"") -> 6m | I3: =IF($B3<>"",HYPERLINK("http://finance.yahoo.com/q?s="&$B3&"&ql=0", "News"),"") -> News | J3: =IF($B3<>"",HYPERLINK("http://finance.yahoo.com/q/ks?s="&$B3&"+Key+Statistics","Key Stats"),"") -> Key Stats
A4: BMO EQUAL WEIGHT US BANK IDX ET | B4: =IF(Portfolio!C13=0,"",Portfolio!C13) -> ZBK.TO | C4: 3m | D4: 6m | E4: 1y | F4: 2y | G4: 5y | H4: 6m | I4: News | J4: Key Stats
A5: Bank of America Corporation Com | B5: =IF(Portfolio!C14=0,"",Portfolio!C14) -> BAC | C5: 3m | D5: 6m | E5: 1y | F5: 2y | G5: 5y | H5: 6m | I5: News | J5: Key Stats
A6: ELEMENT FLEET MANAGEMENT CORP | B6: =IF(Portfolio!C15=0,"",Portfolio!C15) -> EFN.TO | C6: 3m | D6: 6m | E6: 1y | F6: 2y | G6: 5y | H6: 6m | I6: News | J6: Key Stats
B7: =IF(Portfolio!C16=0,"",Portfolio!C16) -> 
B8: =IF(Portfolio!C17=0,"",Portfolio!C17) -> 
A9: CRESCENT POINT ENERGY CORP. | B9: =IF(Portfolio!C18=0,"",Portfolio!C18) -> CPG.TO | C9: 3m | D9: 6m | E9: 1y | F9: 2y | G9: 5y | H9: 6m | I9: News | J9: Key Stats
A10: DH CORPORATION | B10: =IF(Portfolio!C19=0,"",Portfolio!C19) -> DH.TO | C10: 3m | D10: 6m | E10: 1y | F10: 2y | G10: 5y | H10: 6m | I10: News | J10: Key Stats
A11: FAIRFAX INDIA HOLDINGS CORPORAT | B11: =IF(Portfolio!C20=0,"",Portfolio!C20) -> FIH-U.TO | C11: 3m | D11: 6m | E11: 1y | F11: 2y | G11: 5y | H11: 6m | I11: News | J11: Key Stats
A12: Walt Disney Company (The) Commo | B12: =IF(Portfolio!C21=0,"",Portfolio!C21) -> DIS | C12: 3m | D12: 6m | E12: 1y | F12: 2y | G12: 5y | H12: 6m | I12: News | J12: Key Stats
A13: iShares Nasdaq Biotechnology In | B13: =IF(Portfolio!C22=0,"",Portfolio!C22) -> IBB | C13: 3m | D13: 6m | E13: 1y | F13: 2y | G13: 5y | H13: 6m | I13: News | J13: Key Stats
A14: BMO EQUAL WEIGHT US BANK IDX ET | B14: =IF(Portfolio!C23=0,"",Portfolio!C23) -> ZBK.TO | C14: 3m | D14: 6m | E14: 1y | F14: 2y | G14: 5y | H14: 6m | I14: News | J14: Key Stats
A15: Bank of America Corporation Com | B15: =IF(Portfolio!C24=0,"",Portfolio!C24) -> BAC | C15: 3m | D15: 6m | E15: 1y | F15: 2y | G15: 5y | H15: 6m | I15: News | J15: Key Stats
A16: ELEMENT FLEET MANAGEMENT CORP | B16: =IF(Portfolio!C25=0,"",Portfolio!C25) -> EFN.TO | C16: 3m | D16: 6m | E16: 1y | F16: 2y | G16: 5y | H16: 6m | I16: News | J16: Key Stats
B17: =IF(Portfolio!C26=0,"",Portfolio!C26) -> 
A18: BMO EQUAL WEIGHT US BANK IDX ET | B18: =IF(Portfolio!C27=0,"",Portfolio!C27) -> ZBK.TO | C18: 3m | D18: 6m | E18: 1y | F18: 2y | G18: 5y | H18: 6m | I18: News | J18: Key Stats
A19: BMO EQL WGT US HCARE HDGD TO CA | B19: =IF(Portfolio!C28=0,"",Portfolio!C28) -> ZUH.TO | C19: 3m | D19: 6m | E19: 1y | F19: 2y | G19: 5y | H19: 6m | I19: News | J19: Key Stats
A20: ELEMENT FLEET MANAGEMENT CORP | B20: =IF(Portfolio!C29=0,"",Portfolio!C29) -> EFN.TO | C20: 3m | D20: 6m | E20: 1y | F20: 2y | G20: 5y | H20: 6m | I20: News | J20: Key Stats
B21: =IF(Portfolio!C30=0,"",Portfolio!C30) -> 
A22: BOMBARDIER INC., CL. A, MV | B22: =IF(Portfolio!C31=0,"",Portfolio!C31) -> BBD-A.TO | C22: 3m | D22: 6m | E22: 1y | F22: 2y | G22: 5y | H22: 6m | I22: News | J22: Key Stats
A23: BOMBARDIER INC., CL. B, SV | B23: =IF(Portfolio!C32=0,"",Portfolio!C32) -> BBD-B.TO | C23: 3m | D23: 6m | E23: 1y | F23: 2y | G23: 5y | H23: 6m | I23: News | J23: Key Stats
A24: SAPUTO INC. | B24: =IF(Portfolio!C33=0,"",Portfolio!C33) -> SAP.TO | C24: 3m | D24: 6m | E24: 1y | F24: 2y | G24: 5y | H24: 6m | I24: News | J24: Key Stats
A25: TD US Small-Cap Equity - I | B25: =IF(Portfolio!C34=0,"",Portfolio!C34) -> TD.TO | C25: 3m | D25: 6m | E25: 1y | F25: 2y | G25: 5y | H25: 6m | I25: News | J25: Key Stats
A26: AIRBOSS AMERICA J | B26: =IF(Portfolio!C35=0,"",Portfolio!C35) -> BOS.TO | C26: 3m | D26: 6m | E26: 1y | F26: 2y | G26: 5y | H26: 6m | I26: News | J26: Key Stats
B27: =IF(Portfolio!C36=0,"",Portfolio!C36) -> 
A28: CANADIAN NATIONAL RAILWAY CO. | B28: =IF(Portfolio!C37=0,"",Portfolio!C37) -> CNR.TO | C28: 3m | D28: 6m | E28: 1y | F28: 2y | G28: 5y | H28: 6m | I28: News | J28: Key Stats
A29: BANK OF NOVA SCOTIA | B29: =IF(Portfolio!C38=0,"",Portfolio!C38) -> BNS.TO | C29: 3m | D29: 6m | E29: 1y | F29: 2y | G29: 5y | H29: 6m | I29: News | J29: Key Stats
A30: CANADIAN NATIONAL RAILWAY CO. | B30: =IF(Portfolio!C39=0,"",Portfolio!C39) -> CNR.TO | C30: 3m | D30: 6m | E30: 1y | F30: 2y | G30: 5y | H30: 6m | I30: News | J30: Key Stats
B31: =IF(Portfolio!C40=0,"",Portfolio!C40) -> 
B32: =IF(Portfolio!C41=0,"",Portfolio!C41) -> 
B33: =IF(Portfolio!C42=0,"",Portfolio!C42) -> 
B34: =IF(Portfolio!C43=0,"",Portfolio!C43) -> 
A35: BMO INDIA EQUITY INDEX ETF | B35: =IF(Portfolio!C44=0,"",Portfolio!C44) -> ZID.TO | C35: 3m | D35: 6m | E35: 1y | F35: 2y | G35: 5y | H35: 6m | I35: News | J35: Key Stats
A36: iSHARES SP TSX CAPPED CONS STPL | B36: =IF(Portfolio!C45=0,"",Portfolio!C45) -> XST.TO | C36: 3m | D36: 6m | E36: 1y | F36: 2y | G36: 5y | H36: 6m | I36: News | J36: Key Stats
A37: QUEBECOR INC., CL.B, SV | B37: =IF(Portfolio!C46=0,"",Portfolio!C46) -> QBR-B.TO | C37: 3m | D37: 6m | E37: 1y | F37: 2y | G37: 5y | H37: 6m | I37: News | J37: Key Stats
B38: =IF(Portfolio!C47=0,"",Portfolio!C47) -> 
B39: =IF(Portfolio!C48=0,"",Portfolio!C48) -> 
A40: AMERICAS SILVER CORPORATION | B40: =IF(Portfolio!C49=0,"",Portfolio!C49) -> SPM.TO | C40: 3m | D40: 6m | E40: 1y | F40: 2y | G40: 5y | H40: 6m | I40: News | J40: Key Stats
A41: GOLDEN ARROW RES CORP. | B41: =IF(Portfolio!C50=0,"",Portfolio!C50) -> GRG.V | C41: 3m | D41: 6m | E41: 1y | F41: 2y | G41: 5y | H41: 6m | I41: News | J41: Key Stats
A42: YAMANA GOLD INC | B42: =IF(Portfolio!C51=0,"",Portfolio!C51) -> YRI.TO | C42: 3m | D42: 6m | E42: 1y | F42: 2y | G42: 5y | H42: 6m | I42: News | J42: Key Stats
A43: GOLDCORP INC | B43: =IF(Portfolio!C52=0,"",Portfolio!C52) -> G.TO | C43: 3m | D43: 6m | E43: 1y | F43: 2y | G43: 5y | H43: 6m | I43: News | J43: Key Stats
A44: BARRICK GOLD CORPORATION | B44: =IF(Portfolio!C53=0,"",Portfolio!C53) -> ABX.TO | C44: 3m | D44: 6m | E44: 1y | F44: 2y | G44: 5y | H44: 6m | I44: News | J44: Key Stats
A45: KINROSS GOLD CORP. | B45: =IF(Portfolio!C54=0,"",Portfolio!C54) -> K.TO | C45: 3m | D45: 6m | E45: 1y | F45: 2y | G45: 5y | H45: 6m | I45: News | J45: Key Stats
A46: DETOUR GOLD CORPORATION | B46: =IF(Portfolio!C55=0,"",Portfolio!C55) -> DGC.TO | C46: 3m | D46: 6m | E46: 1y | F46: 2y | G46: 5y | H46: 6m | I46: News | J46: Key Stats
A47: SILVER WHEATON CORP. | B47: =IF(Portfolio!C56=0,"",Portfolio!C56) -> SLW.TO | C47: 3m | D47: 6m | E47: 1y | F47: 2y | G47: 5y | H47: 6m | I47: News | J47: Key Stats
A48: TAHOE RESOURCES INC | B48: =IF(Portfolio!C57=0,"",Portfolio!C57) -> THO.TO | C48: 3m | D48: 6m | E48: 1y | F48: 2y | G48: 5y | H48: 6m | I48: News | J48: Key Stats
A49: PAN AMERICAN J | B49: =IF(Portfolio!C58=0,"",Portfolio!C58) -> PAA.TO | C49: 3m | D49: 6m | E49: 1y | F49: 2y | G49: 5y | H49: 6m | I49: News | J49: Key Stats
A50: MAG SILVER CORP. | B50: =IF(Portfolio!C59=0,"",Portfolio!C59) -> MAG.TO | C50: 3m | D50: 6m | E50: 1y | F50: 2y | G50: 5y | H50: 6m | I50: News | J50: Key Stats
A51: GOLDMONEY INC | B51: =IF(Portfolio!C60=0,"",Portfolio!C60) -> XAU.V | C51: 3m | D51: 6m | E51: 1y | F51: 2y | G51: 5y | H51: 6m | I51: News | J51: Key Stats
B52: =IF(Portfolio!C61=0,"",Portfolio!C61) -> 
B53: =IF(Portfolio!C62=0,"",Portfolio!C62) -> 
B54: =IF(Portfolio!C63=0,"",Portfolio!C63) -> 
B55: =IF(Portfolio!C64=0,"",Portfolio!C64) -> 
B56: =IF(Portfolio!C65=0,"",Portfolio!C65) -> 
B57: =IF(Portfolio!C66=0,"",Portfolio!C66) -> 
B58: =IF(Portfolio!C67=0,"",Portfolio!C67) -> 
B59: =IF(Portfolio!C68=0,"",Portfolio!C68) -> 
B60: =IF(Portfolio!C69=0,"",Portfolio!C69) -> 
B61: =IF(Portfolio!C70=0,"",Portfolio!C70) -> 
B62: =IF(Portfolio!C71=0,"",Portfolio!C71) -> 
B63: =IF(Portfolio!C72=0,"",Portfolio!C72) -> 
B64: =IF(Portfolio!C73=0,"",Portfolio!C73) -> 
B65: =IF(Portfolio!C74=0,"",Portfolio!C74) -> 
B66: =IF(Portfolio!C75=0,"",Portfolio!C75) -> 
A67: =GetName($B67) ->  | B67: =IF(Portfolio!C76=0,"",Portfolio!C76) ->  | C67: =IF($B67<>"",HYPERLINK("http://ichart.finance.yahoo.com/c/3m/"&$B67&"?1234","3m"),"") ->  | D67: =IF($B67<>"",HYPERLINK("http://ichart.finance.yahoo.com/c/6m/"&$B67&"?1234","6m"),"") ->  | E67: =IF($B67<>"",HYPERLINK("http://ichart.finance.yahoo.com/c/1y/"&$B67&"?1234","1y"),"") ->  | F67: =IF($B67<>"",HYPERLINK("http://ichart.finance.yahoo.com/c/2y/"&$B67&"?1234","2y"),"") ->  | G67: =IF($B67<>"",HYPERLINK("http://ichart.finance.yahoo.com/c/5y/"&$B67&"?1234","5y"),"") ->  | H67: =IF($B67<>"",HYPERLINK("http://stockcharts.com/h-sc/ui?s="&$B67,"6m"),"") ->  | I67: =IF($B67<>"",HYPERLINK("http://finance.yahoo.com/q?s="&$B67&"&ql=0", "News"),"") ->  | J67: =IF($B67<>"",HYPERLINK("http://finance.yahoo.com/q/ks?s="&$B67&"+Key+Statistics","Key Stats"),"") -> 
B68: =IF(Portfolio!C77=0,"",Portfolio!C77) -> 
B69: =IF(Portfolio!C78=0,"",Portfolio!C78) -> 
B70: =IF(Portfolio!C79=0,"",Portfolio!C79) -> 
B71: =IF(Portfolio!C80=0,"",Portfolio!C80) -> 
B72: =IF(Portfolio!C81=0,"",Portfolio!C81) -> 
B73: =IF(Portfolio!C82=0,"",Portfolio!C82) -> 
B74: =IF(Portfolio!C83=0,"",Portfolio!C83) -> 
B75: =IF(Portfolio!C84=0,"",Portfolio!C84) -> 
B76: =IF(Portfolio!C85=0,"",Portfolio!C85) -> 
B77: =IF(Portfolio!C86=0,"",Portfolio!C86) -> 
B78: =IF(Portfolio!C87=0,"",Portfolio!C87) -> 
B79: =IF(Portfolio!C88=0,"",Portfolio!C88) -> 
B80: =IF(Portfolio!C89=0,"",Portfolio!C89) -> 
B81: =IF(Portfolio!C90=0,"",Portfolio!C90) -> 
B82: =IF(Portfolio!C91=0,"",Portfolio!C91) -> 
B83: =IF(Portfolio!C92=0,"",Portfolio!C92) -> 
B84: =IF(Portfolio!C93=0,"",Portfolio!C93) -> 
B85: =IF(Portfolio!C94=0,"",Portfolio!C94) -> 
B86: =IF(Portfolio!C95=0,"",Portfolio!C95) -> 
B87: =IF(Portfolio!C96=0,"",Portfolio!C96) -> 
B88: =IF(Portfolio!C97=0,"",Portfolio!C97) -> 
B89: =IF(Portfolio!C98=0,"",Portfolio!C98) -> 
B90: =IF(Portfolio!C99=0,"",Portfolio!C99) -> 
B91: =IF(Portfolio!C100=0,"",Portfolio!C100) -> 
B92: =IF(Portfolio!C101=0,"",Portfolio!C101) -> 
B93: =IF(Portfolio!C102=0,"",Portfolio!C102) -> 
B94: =IF(Portfolio!C103=0,"",Portfolio!C103) -> 
B95: =IF(Portfolio!C104=0,"",Portfolio!C104) -> 
B96: =IF(Portfolio!C105=0,"",Portfolio!C105) -> 
B97: =IF(Portfolio!C106=0,"",Portfolio!C106) -> 
B98: =IF(Portfolio!C107=0,"",Portfolio!C107) -> 
B99: =IF(Portfolio!C108=0,"",Portfolio!C108) -> 
B100: =IF(Portfolio!C109=0,"",Portfolio!C109) -> 
B101: =IF(Portfolio!C110=0,"",Portfolio!C110) -> 
B102: =IF(Portfolio!C111=0,"",Portfolio!C111) -> 
B103: =IF(Portfolio!C112=0,"",Portfolio!C112) -> 
B104: =IF(Portfolio!C113=0,"",Portfolio!C113) -> 
B105: =IF(Portfolio!C114=0,"",Portfolio!C114) -> 
B106: =IF(Portfolio!C115=0,"",Portfolio!C115) -> 
B107: =IF(Portfolio!C116=0,"",Portfolio!C116) -> 
B108: =IF(Portfolio!C117=0,"",Portfolio!C117) -> 
B109: =IF(Portfolio!C118=0,"",Portfolio!C118) -> 
B110: =IF(Portfolio!C119=0,"",Portfolio!C119) -> 
B111: =IF(Portfolio!C120=0,"",Portfolio!C120) -> 
B112: =IF(Portfolio!C121=0,"",Portfolio!C121) -> 
B113: =IF(Portfolio!C122=0,"",Portfolio!C122) -> 
B114: =IF(Portfolio!C123=0,"",Portfolio!C123) -> 
B115: =IF(Portfolio!C124=0,"",Portfolio!C124) -> 
B116: =IF(Portfolio!C125=0,"",Portfolio!C125) -> 
B117: =IF(Portfolio!C126=0,"",Portfolio!C126) -> 
B118: =IF(Portfolio!C127=0,"",Portfolio!C127) -> 
B119: =IF(Portfolio!C128=0,"",Portfolio!C128) -> 
B120: =IF(Portfolio!C129=0,"",Portfolio!C129) -> 
B121: =IF(Portfolio!C130=0,"",Portfolio!C130) -> 
B122: =IF(Portfolio!C131=0,"",Portfolio!C131) -> 
B123: =IF(Portfolio!C132=0,"",Portfolio!C132) -> 
B124: =IF(Portfolio!C133=0,"",Portfolio!C133) -> 
B125: =IF(Portfolio!C134=0,"",Portfolio!C134) -> 
B126: =IF(Portfolio!C135=0,"",Portfolio!C135) -> 
B127: =IF(Portfolio!C136=0,"",Portfolio!C136) -> 
B128: =IF(Portfolio!C137=0,"",Portfolio!C137) -> 
B129: =IF(Portfolio!C138=0,"",Portfolio!C138) -> 
B130: =IF(Portfolio!C139=0,"",Portfolio!C139) -> 
A131: =GetName($B131) ->  | B131: =IF(Portfolio!C140=0,"",Portfolio!C140) ->  | C131: =IF($B131<>"",HYPERLINK("http://ichart.finance.yahoo.com/c/3m/"&$B131&"?1234","3m"),"") ->  | D131: =IF($B131<>"",HYPERLINK("http://ichart.finance.yahoo.com/c/6m/"&$B131&"?1234","6m"),"") ->  | E131: =IF($B131<>"",HYPERLINK("http://ichart.finance.yahoo.com/c/1y/"&$B131&"?1234","1y"),"") ->  | F131: =IF($B131<>"",HYPERLINK("http://ichart.finance.yahoo.com/c/2y/"&$B131&"?1234","2y"),"") ->  | G131: =IF($B131<>"",HYPERLINK("http://ichart.finance.yahoo.com/c/5y/"&$B131&"?1234","5y"),"") ->  | H131: =IF($B131<>"",HYPERLINK("http://stockcharts.com/h-sc/ui?s="&$B131,"6m"),"") ->  | I131: =IF($B131<>"",HYPERLINK("http://finance.yahoo.com/q?s="&$B131&"&ql=0", "News"),"") ->  | J131: =IF($B131<>"",HYPERLINK("http://finance.yahoo.com/q/ks?s="&$B131&"+Key+Statistics","Key Stats"),"") -> 
B132: =IF(Portfolio!C141=0,"",Portfolio!C141) -> 
B133: =IF(Portfolio!C142=0,"",Portfolio!C142) -> 
B134: =IF(Portfolio!C143=0,"",Portfolio!C143) -> 
B135: =IF(Portfolio!C144=0,"",Portfolio!C144) -> 
B136: =IF(Portfolio!C145=0,"",Portfolio!C145) -> 
B137: =IF(Portfolio!C146=0,"",Portfolio!C146) -> 
B138: =IF(Portfolio!C147=0,"",Portfolio!C147) -> 
B139: =IF(Portfolio!C148=0,"",Portfolio!C148) -> 
B140: =IF(Portfolio!C149=0,"",Portfolio!C149) -> 
B141: =IF(Portfolio!C150=0,"",Portfolio!C150) -> 
B142: =IF(Portfolio!C151=0,"",Portfolio!C151) -> 
B143: =IF(Portfolio!C152=0,"",Portfolio!C152) -> 
B144: =IF(Portfolio!C153=0,"",Portfolio!C153) -> 
B145: =IF(Portfolio!C154=0,"",Portfolio!C154) -> 
B146: =IF(Portfolio!C155=0,"",Portfolio!C155) -> 
B147: =IF(Portfolio!C156=0,"",Portfolio!C156) -> 
B148: =IF(Portfolio!C157=0,"",Portfolio!C157) -> 
B149: =IF(Portfolio!C158=0,"",Portfolio!C158) -> 
B150: =IF(Portfolio!C159=0,"",Portfolio!C159) -> 
B151: =IF(Portfolio!C160=0,"",Portfolio!C160) -> 
B152: =IF(Portfolio!C161=0,"",Portfolio!C161) -> 
B153: =IF(Portfolio!C162=0,"",Portfolio!C162) -> 
B154: =IF(Portfolio!C163=0,"",Portfolio!C163) -> 
B155: =IF(Portfolio!C164=0,"",Portfolio!C164) -> 
B156: =IF(Portfolio!C165=0,"",Portfolio!C165) -> 
B157: =IF(Portfolio!C166=0,"",Portfolio!C166) -> 
B158: =IF(Portfolio!C167=0,"",Portfolio!C167) -> 
B159: =IF(Portfolio!C168=0,"",Portfolio!C168) -> 
B160: =IF(Portfolio!C169=0,"",Portfolio!C169) -> 
B161: =IF(Portfolio!C170=0,"",Portfolio!C170) -> 
B162: =IF(Portfolio!C171=0,"",Portfolio!C171) -> 
B163: =IF(Portfolio!C172=0,"",Portfolio!C172) -> 
B164: =IF(Portfolio!C173=0,"",Portfolio!C173) -> 
B165: =IF(Portfolio!C174=0,"",Portfolio!C174) -> 
B166: =IF(Portfolio!C175=0,"",Portfolio!C175) -> 
B167: =IF(Portfolio!C176=0,"",Portfolio!C176) -> 
B168: =IF(Portfolio!C177=0,"",Portfolio!C177) -> 
B169: =IF(Portfolio!C178=0,"",Portfolio!C178) -> 
B170: =IF(Portfolio!C179=0,"",Portfolio!C179) -> 
B171: =IF(Portfolio!C180=0,"",Portfolio!C180) -> 
B172: =IF(Portfolio!C181=0,"",Portfolio!C181) -> 
B173: =IF(Portfolio!C182=0,"",Portfolio!C182) -> 
B174: =IF(Portfolio!C183=0,"",Portfolio!C183) -> 
B175: =IF(Portfolio!C184=0,"",Portfolio!C184) -> 
B176: =IF(Portfolio!C185=0,"",Portfolio!C185) -> 
B177: =IF(Portfolio!C186=0,"",Portfolio!C186) -> 
B178: =IF(Portfolio!C187=0,"",Portfolio!C187) -> 
B179: =IF(Portfolio!C188=0,"",Portfolio!C188) -> 
B180: =IF(Portfolio!C189=0,"",Portfolio!C189) -> 
B181: =IF(Portfolio!C190=0,"",Portfolio!C190) -> 
B182: =IF(Portfolio!C191=0,"",Portfolio!C191) -> 
B183: =IF(Portfolio!C192=0,"",Portfolio!C192) -> 
B184: =IF(Portfolio!C193=0,"",Portfolio!C193) -> 
B185: =IF(Portfolio!C194=0,"",Portfolio!C194) -> 
B186: =IF(Portfolio!C195=0,"",Portfolio!C195) -> 
B187: =IF(Portfolio!C196=0,"",Portfolio!C196) -> 
B188: =IF(Portfolio!C197=0,"",Portfolio!C197) -> 
B189: =IF(Portfolio!C198=0,"",Portfolio!C198) -> 
B190: =IF(Portfolio!C199=0,"",Portfolio!C199) -> 
B191: =IF(Portfolio!C200=0,"",Portfolio!C200) -> 
B192: =IF(Portfolio!C201=0,"",Portfolio!C201) -> 
B193: =IF(Portfolio!C202=0,"",Portfolio!C202) -> 
B194: =IF(Portfolio!C203=0,"",Portfolio!C203) -> 
A195: =GetName($B195) ->  | B195: =IF(Portfolio!C204=0,"",Portfolio!C204) ->  | C195: =IF($B195<>"",HYPERLINK("http://ichart.finance.yahoo.com/c/3m/"&$B195&"?1234","3m"),"") ->  | D195: =IF($B195<>"",HYPERLINK("http://ichart.finance.yahoo.com/c/6m/"&$B195&"?1234","6m"),"") ->  | E195: =IF($B195<>"",HYPERLINK("http://ichart.finance.yahoo.com/c/1y/"&$B195&"?1234","1y"),"") ->  | F195: =IF($B195<>"",HYPERLINK("http://ichart.finance.yahoo.com/c/2y/"&$B195&"?1234","2y"),"") ->  | G195: =IF($B195<>"",HYPERLINK("http://ichart.finance.yahoo.com/c/5y/"&$B195&"?1234","5y"),"") ->  | H195: =IF($B195<>"",HYPERLINK("http://stockcharts.com/h-sc/ui?s="&$B195,"6m"),"") ->  | I195: =IF($B195<>"",HYPERLINK("http://finance.yahoo.com/q?s="&$B195&"&ql=0", "News"),"") ->  | J195: =IF($B195<>"",HYPERLINK("http://finance.yahoo.com/q/ks?s="&$B195&"+Key+Statistics","Key Stats"),"") -> 
B196: =IF(Portfolio!C205=0,"",Portfolio!C205) -> 
B197: =IF(Portfolio!C206=0,"",Portfolio!C206) -> 
B198: =IF(Portfolio!C207=0,"",Portfolio!C207) -> 
B199: =IF(Portfolio!C208=0,"",Portfolio!C208) -> 
B200: =IF(Portfolio!C209=0,"",Portfolio!C209) -> 
... 311 more rows

Sheet Settings
A1: Formula Variable Settings
A2: Alert SELL Percentage Gain Limit | B2: 0.2
A3: Alert STOP Trailing Percentage Loss Limit | B3: 0.04

Sheet Exchanges
A1: Exchanges and Yahoo
A3: Add the listed Suffix to your symbol name to get a quote from a specific exchange (N/A means no suffix)
A5: Country | B5: Exchange | C5: Suffix | D5: Delay | E5: Data Provider
A6: United States of America | B6: American Stock Exchange | C6: N/A | D6: 15 min | E6: Direct from Exchange
A7: United States of America | B7: BATS Exchange | C7: N/A | D7: Real-time | E7: Direct from Exchange
A8: United States of America | B8: Chicago Board of Trade | C8: .CBT | D8: 10 min | E8: Interactive Data Real-Time Services
A9: United States of America | B9: Chicago Mercantile Exchange | C9: .CME | D9: 10 min | E9: Interactive Data Real-Time Services
A10: United States of America | B10: Dow Jones Indexes | C10: N/A | D10: Real-time | E10: Interactive Data Real-Time Services
A11: United States of America | B11: NASDAQ Stock Exchange | C11: N/A | D11: 15 min | E11: Direct from Exchange
A12: United States of America | B12: New York Board of Trade | C12: .NYB | D12: 30 min | E12: Interactive Data Real-Time Services
A13: United States of America | B13: New York Commodities Exchange | C13: .CMX | D13: 30 min | E13: Interactive Data Real-Time Services
A14: United States of America | B14: New York Mercantile Exchange | C14: .NYM | D14: 30 min | E14: Interactive Data Real-Time Services
A15: United States of America | B15: New York Stock Exchange | C15: N/A | D15: 15 min | E15: Direct from Exchange
A16: United States of America | B16: OTC Bulletin Board Market | C16: .OB | D16: 20 min | E16: Direct from Exchange
A17: United States of America | B17: Pink Sheets | C17: .PK | D17: 15 min | E17: Direct from Exchange
A18: United States of America | B18: S & P Indices | C18: N/A | D18: Real-time | E18: Interactive Data Real-Time Services
A19: Argentina | B19: Buenos Aires Stock Exchange | C19: .BA | D19: 30 min | E19: Interactive Data Real-Time Services
A20: Austria | B20: Vienna Stock Exchange | C20: .VI | D20: 15 min | E20: Telekurs
A21: Australia | B21: Australian Stock Exchange | C21: .AX | D21: 20 min | E21: Interactive Data Real-Time Services
A22: Belgium | B22: Brussels Stocks | C22: .BR | D22: 15 min
A23: Brazil | B23: BOVESPA – Sao Paolo Stock Exchange | C23: .SA | D23: 15 min | E23: Interactive Data Real-Time Services
A24: Canada | B24: Toronto Stock Exchange | C24: .TO | D24: 15 min | E24: Interactive Data Real-Time Services
A25: Canada | B25: TSX Venture Exchange | C25: .V | D25: 15 min | E25: Interactive Data Real-Time Services
A26: Chile | B26: Santiago Stock Exchange | C26: .SN | D26: 15 min | E26: Interactive Data Real-Time Services
A27: China | B27: Shanghai Stock Exchange | C27: .SS | D27: 30 min | E27: Interactive Data Real-Time Services
A28: China | B28: Shenzhen Stock Exchange | C28: .SZ | D28: 30 min | E28: Interactive Data Real-Time Services
A29: Denmark | B29: Copenhagen Stock Exchange | C29: .CO | D29: 15 min | E29: Telekurs
A30: France | B30: Euronext | C30: .NX | D30: 15 min | E30: Telekurs
A31: France | B31: Paris Stock Exchange | C31: .PA | D31: 15 min | E31: Telekurs
A32: Germany | B32: Berlin Stock Exchange | C32: .BE | D32: 15 min | E32: Telekurs
A33: Germany | B33: Bremen Stock Exchange | C33: .BM | D33: 15 min | E33: Telekurs
A34: Germany | B34: Dusseldorf Stock Exchange | C34: .DU | D34: 15 min | E34: Telekurs
A35: Germany | B35: Frankfurt Stock Exchange | C35: .F | D35: 15 min | E35: Telekurs
A36: Germany | B36: Hamburg Stock Exchange | C36: .HM | D36: 15 min | E36: Telekurs
A37: Germany | B37: Hanover Stock Exchange | C37: .HA | D37: 15 min | E37: Telekurs
A38: Germany | B38: Munich Stock Exchange | C38: .MU | D38: 15 min | E38: Telekurs
A39: Germany | B39: Stuttgart Stock Exchange | C39: .SG | D39: 15 min | E39: Telekurs
A40: Germany | B40: XETRA Stock Exchange | C40: .DE | D40: 15 min | E40: Telekurs
A41: Hong Kong | B41: Hong Kong Stock Exchange | C41: .HK | D41: 15 min | E41: Interactive Data Real-Time Services
A42: India | B42: Bombay Stock Exchange | C42: .BO | D42: 15 min | E42: Interactive Data Real-Time Services
A43: India | B43: National Stock Exchange of India | C43: .NS | D43: 15 min | E43: National Stock Exchange of India
A44: Indonesia | B44: Jakarta Stock Exchange | C44: .JK | D44: 10 min | E44: Interactive Data Real-Time Services
A45: Israel | B45: Tel Aviv Stock Exchange | C45: .TA | D45: 20 min | E45: Telekurs
A46: Italy | B46: Milan Stock Exchange | C46: .MI | D46: 20 min | E46: Telekurs
A47: Japan | B47: Nikkei Indices | C47: N/A | D47: 30 min | E47: Interactive Data Real-Time Services
A48: Mexico | B48: Mexico Stock Exchange | C48: .MX | D48: 20 min | E48: Telekurs
A49: Netherlands | B49: Amsterdam Stock Exchange | C49: .AS | D49: 15 min | E49: Telekurs
A50: New Zealand | B50: New Zealand Stock Exchange | C50: .NZ | D50: 20 min | E50: Interactive Data Real-Time Services
A51: Norway | B51: Oslo Stock Exchange | C51: .OL | D51: 15 min | E51: Telekurs
A52: Portugal | B52: Lisbon Stocks | C52: .LS | D52: 15 min
A53: Singapore | B53: Singapore Stock Exchange | C53: .SI | D53: 20 min | E53: Interactive Data Real-Time Services
A54: South Korea | B54: Korea Stock Exchange | C54: .KS | D54: 20 min | E54: Interactive Data Real-Time Services
A55: South Korea | B55: KOSDAQ | C55: .KQ | D55: 20 min | E55: Interactive Data Real-Time Services
A56: Spain | B56: Barcelona Stock Exchange | C56: .BC | D56: 15 min | E56: Telekurs
A57: Spain | B57: Bilbao Stock Exchange | C57: .BI | D57: 15 min | E57: Telekurs
A58: Spain | B58: Madrid Fixed Income Market | C58: .MF | D58: 15 min | E58: Telekurs
A59: Spain | B59: Madrid SE C.A.T.S. | C59: .MC | D59: 15 min | E59: Telekurs
A60: Spain | B60: Madrid Stock Exchange | C60: .MA | D60: 15 min | E60: Telekurs
A61: Sweden | B61: Stockholm Stock Exchange | C61: .ST | D61: 15 min | E61: Telekurs
A62: Switzerland | B62: Swiss Exchange | C62: .SW | D62: 30 min | E62: Telekurs
A63: Taiwan | B63: Taiwan OTC Exchange | C63: .TWO | D63: 20 min | E63: Interactive Data Real-Time Services
A64: Taiwan | B64: Taiwan Stock Exchange | C64: .TW | D64: 20 min | E64: Interactive Data Real-Time Services
A65: United Kingdom | B65: FTSE Indices | C65: N/A | D65: 15 min | E65: Telekurs
A66: United Kingdom | B66: London Stock Exchange | C66: .L | D66: 20 min | E66: Telekurs
A69: Yahoo Finance API
A71: Name | B71: Description | C71: Tag
A72: AfterHoursChangeRealtime | B72: After Hours Change (Realtime) | C72: c8
A73: AnnualizedGain | B73: Annualized Gain | C73: g3
A74: Ask | B74: Ask | C74: a0
A75: AskRealtime | B75: Ask (Realtime) | C75: b2
A76: AskSize | B76: Ask Size | C76: a5
A77: AverageDailyVolume | B77: Average Daily Volume | C77: a2
A78: Bid | B78: Bid | C78: b0
A79: BidRealtime | B79: Bid (Realtime) | C79: b3
A80: BidSize | B80: Bid Size | C80: b6
A81: BookValuePerShare | B81: Book Value Per Share | C81: b4
A82: Change | B82: Change | C82: c1
A83: Change_ChangeInPercent | B83: Change Change In Percent | C83: c0
A84: ChangeFromFiftydayMovingAverage | B84: Change From Fiftyday Moving Average | C84: m7
A85: ChangeFromTwoHundreddayMovingAverage | B85: Change From Two Hundredday Moving Average | C85: m5
A86: ChangeFromYearHigh | B86: Change From Year High | C86: k4
A87: ChangeFromYearLow | B87: Change From Year Low | C87: j5
A88: ChangeInPercent | B88: Change In Percent | C88: p2
A89: ChangeInPercentRealtime | B89: Change In Percent (Realtime) | C89: k2
A90: ChangeRealtime | B90: Change (Realtime) | C90: c6
A91: Commission | B91: Commission | C91: c3
A92: Currency | B92: Currency | C92: c4
A93: DaysHigh | B93: Days High | C93: h0
A94: DaysLow | B94: Days Low | C94: g0
A95: DaysRange | B95: Days Range | C95: m0
A96: DaysRangeRealtime | B96: Days Range (Realtime) | C96: m2
A97: DaysValueChange | B97: Days Value Change | C97: w1
A98: DaysValueChangeRealtime | B98: Days Value Change (Realtime) | C98: w4
A99: DividendPayDate | B99: Dividend Pay Date | C99: r1
A100: TrailingAnnualDividendYield | B100: Trailing Annual Dividend Yield | C100: d0
A101: TrailingAnnualDividendYieldInPercent | B101: Trailing Annual Dividend Yield In Percent | C101: y0
A102: DilutedEPS | B102: Diluted E P S | C102: e0
A103: EBITDA | B103: E B I T D A | C103: j4
A104: EPSEstimateCurrentYear | B104: E P S Estimate Current Year | C104: e7
A105: EPSEstimateNextQuarter | B105: E P S Estimate Next Quarter | C105: e9
A106: EPSEstimateNextYear | B106: E P S Estimate Next Year | C106: e8
A107: ExDividendDate | B107: Ex Dividend Date | C107: q0
A108: FiftydayMovingAverage | B108: Fiftyday Moving Average | C108: m3
A109: SharesFloat | B109: Shares Float | C109: f6
A110: HighLimit | B110: High Limit | C110: l2
A111: HoldingsGain | B111: Holdings Gain | C111: g4
A112: HoldingsGainPercent | B112: Holdings Gain Percent | C112: g1
A113: HoldingsGainPercentRealtime | B113: Holdings Gain Percent (Realtime) | C113: g5
A114: HoldingsGainRealtime | B114: Holdings Gain (Realtime) | C114: g6
A115: HoldingsValue | B115: Holdings Value | C115: v1
A116: HoldingsValueRealtime | B116: Holdings Value (Realtime) | C116: v7
A117: LastTradeDate | B117: Last Trade Date | C117: d1
A118: LastTradePriceOnly | B118: Last Trade Price Only | C118: l1 | D118: =GetStockNumParam("MFC.TO","l1") -> 24.64
A119: LastTradeRealtimeWithTime | B119: Last Trade (Realtime) With Time | C119: k1
A120: LastTradeSize | B120: Last Trade Size | C120: k3
A121: LastTradeTime | B121: Last Trade Time | C121: t1
A122: LastTradeWithTime | B122: Last Trade With Time | C122: l0
A123: LowLimit | B123: Low Limit | C123: l3
A124: MarketCapitalization | B124: Market Capitalization | C124: j1
A125: MarketCapRealtime | B125: Market Cap (Realtime) | C125: j3
A126: MoreInfo | B126: More Info | C126: i0
A127: Name | B127: Name | C127: n0
A128: Notes | B128: Notes | C128: n4
A129: OneyrTargetPrice | B129: Oneyr Target Price | C129: t8
A130: Open | B130: Open | C130: o0
A131: OrderBookRealtime | B131: Order Book (Realtime) | C131: i5
A132: PEGRatio | B132: P E G Ratio | C132: r5
A133: PERatio | B133: P E Ratio | C133: r0
A134: PERatioRealtime | B134: P E Ratio (Realtime) | C134: r2
A135: PercentChangeFromFiftydayMovingAverage | B135: Percent Change From Fiftyday Moving Average | C135: m8
A136: PercentChangeFromTwoHundreddayMovingAverage | B136: Percent Change From Two Hundredday Moving Average | C136: m6
A137: ChangeInPercentFromYearHigh | B137: Change In Percent From Year High | C137: k5
A138: PercentChangeFromYearLow | B138: Percent Change From Year Low | C138: j6
A139: PreviousClose | B139: Previous Close | C139: p0
A140: PriceBook | B140: Price Book | C140: p6
A141: PriceEPSEstimateCurrentYear | B141: Price E P S Estimate Current Year | C141: r6
A142: PriceEPSEstimateNextYear | B142: Price E P S Estimate Next Year | C142: r7
A143: PricePaid | B143: Price Paid | C143: p1
A144: PriceSales | B144: Price Sales | C144: p5
A145: Revenue | B145: Revenue | C145: s6
A146: SharesOwned | B146: Shares Owned | C146: s1
A147: SharesOutstanding | B147: Shares Outstanding | C147: j2
A148: ShortRatio | B148: Short Ratio | C148: s7
A149: StockExchange | B149: Stock Exchange | C149: x0
A150: Symbol | B150: Symbol | C150: s0
A151: TickerTrend | B151: Ticker Trend | C151: t7
A152: TradeDate | B152: Trade Date | C152: d2
A153: TradeLinks | B153: Trade Links | C153: t6
A154: TradeLinksAdditional | B154: Trade Links Additional | C154: f0
A155: TwoHundreddayMovingAverage | B155: Two Hundredday Moving Average | C155: m4
A156: Volume | B156: Volume | C156: v0
A157: YearHigh | B157: Year High | C157: k0
A158: YearLow | B158: Year Low | C158: j0
A159: YearRange | B159: Year Range | C159: w0
